Workbook

Sheet MARS Budget w UW subaward
A1: MARS Renewal 2021-2026
C2: 03/01/21-02/28/22 | E2: 03/01/22-02/28/23 | G2: 03/01/23-02/28/24 | I2: 03/01/24-02/28/25 | K2: 03/01/25-02/28/26
A3: TOTAL | C3: =D117 -> 930742.4145 | E3: =F117 -> 588941.6288 | G3: =H117 -> 484151.43 | I3: =J117 -> 779452.6372 | K3: =L117 -> 666416.6266 | M3: =M117 -> 3449704.737
A4: SALARY/WAGES | C4: 2 | D4: Y1 | E4: =IF($C$4=1, "HOURS", "MONTHS") -> MONTHS | F4: Y2 | G4: =IF($C$4=1, "HOURS", "MONTHS") -> MONTHS | H4: Y3 | I4: =IF($C$4=1, "HOURS", "MONTHS") -> MONTHS | J4: Y4 | K4: =IF($C$4=1, "HOURS", "MONTHS") -> MONTHS | L4: Y5 | M4: Total
A6: ='Salary Worksheet'!B4 -> Mike Kelly | C6: 0 | D6: =IF($C$4=1,ROUND('Salary Worksheet'!D18*C6,2), ROUND('Salary Worksheet'!D4/12*C6,2)) -> 0 | E6: 0 | F6: =IF($C$4=1,ROUND('Salary Worksheet'!E18*E6,2), ROUND('Salary Worksheet'!E4/12*E6,2)) -> 0 | G6: 0 | H6: =IF($C$4=1,ROUND('Salary Worksheet'!F18*G6,2), ROUND('Salary Worksheet'!F4/12*G6,0)) -> 0 | I6: 0 | J6: =IF($C$4=1,ROUND('Salary Worksheet'!G18*I6,2), ROUND('Salary Worksheet'!G4/12*I6,0)) -> 0 | K6: 0 | L6: =IF($C$4=1,ROUND('Salary Worksheet'!H18*K6,2), ROUND('Salary Worksheet'!H4/12*K6,0)) -> 0 | M6: =SUM(L6,J6,H6,F6,D6) -> 0
C7: 0 | D7: =IF($C$4=1,ROUND('Salary Worksheet'!D19*C7,2), ROUND('Salary Worksheet'!D5/12*C7,2)) -> 0 | E7: 0 | F7: =IF($C$4=1,ROUND('Salary Worksheet'!E19*E7,2), ROUND('Salary Worksheet'!E5/12*E7,2)) -> 0 | G7: 0 | H7: =IF($C$4=1,ROUND('Salary Worksheet'!F19*G7,2), ROUND('Salary Worksheet'!F5/12*G7,0)) -> 0 | I7: 0 | J7: =IF($C$4=1,ROUND('Salary Worksheet'!G19*I7,2), ROUND('Salary Worksheet'!G5/12*I7,0)) -> 0 | K7: 0 | L7: =IF($C$4=1,ROUND('Salary Worksheet'!H19*K7,2), ROUND('Salary Worksheet'!H5/12*K7,0)) -> 0 | M7: =SUM(J7+H7+F7+D7+L7) -> 0
C8: 0 | D8: =IF($C$4=1,ROUND('Salary Worksheet'!D20*C8,2), ROUND('Salary Worksheet'!D6/12*C8,2)) -> 0 | E8: 0 | F8: =IF($C$4=1,ROUND('Salary Worksheet'!E20*E8,2), ROUND('Salary Worksheet'!E6/12*E8,2)) -> 0 | G8: 0 | H8: =IF($C$4=1,ROUND('Salary Worksheet'!F20*G8,2), ROUND('Salary Worksheet'!F6/12*G8,0)) -> 0 | I8: 0 | J8: =IF($C$4=1,ROUND('Salary Worksheet'!G20*I8,2), ROUND('Salary Worksheet'!G6/12*I8,0)) -> 0 | K8: 0 | L8: =IF($C$4=1,ROUND('Salary Worksheet'!H20*K8,2), ROUND('Salary Worksheet'!H6/12*K8,0)) -> 0 | M8: =SUM(J8+H8+F8+D8+L8) -> 0
A9: Subtotal Sr. Personnel Salary | D9: =SUM(D6:D8) -> 0 | F9: =SUM(F6:F8) -> 0 | H9: =SUM(H6:H8) -> 0 | J9: =SUM(J6:J8) -> 0 | L9: =SUM(L6:L8) -> 0 | M9: =SUM(J9+H9+F9+D9+L9) -> 0
A10: ='Salary Worksheet'!B7 -> Craig Dawe | C10: 5 | D10: =IF($C$4=1,ROUND('Salary Worksheet'!D21*C10,2), ROUND('Salary Worksheet'!D7/12*C10,0)) -> 79488 | E10: 2 | F10: =IF($C$4=1,ROUND('Salary Worksheet'!E21*E10,2), ROUND('Salary Worksheet'!E7/12*E10,2)) -> 32748.83 | G10: 0 | H10: =IF($C$4=1,ROUND('Salary Worksheet'!F21*G10,2), ROUND('Salary Worksheet'!F7/12*G10,2)) -> 0 | I10: 0 | J10: =IF($C$4=1,ROUND('Salary Worksheet'!G21*I10,2), ROUND('Salary Worksheet'!G7/12*I10,2)) -> 0 | K10: 0 | L10: =IF($C$4=1,ROUND('Salary Worksheet'!H21*K10,2), ROUND('Salary Worksheet'!H7/12*K10,2)) -> 0 | M10: =SUM(L10+J10+H10+F10+D10) -> 112236.83
A11: ='Salary Worksheet'!B8 -> MARS Operations Manager | C11: 0 | D11: =IF($C$4=1,ROUND('Salary Worksheet'!D22*C11,2), ROUND('Salary Worksheet'!D8/12*C11,0)) -> 0 | E11: 2 | F11: =IF($C$4=1,ROUND('Salary Worksheet'!E22*E11,2), ROUND('Salary Worksheet'!E8/12*E11,2)) -> 31795 | G11: 4 | H11: =IF($C$4=1,ROUND('Salary Worksheet'!F22*G11,2), ROUND('Salary Worksheet'!F8/12*G11,2)) -> 65497.67 | I11: 4 | J11: =IF($C$4=1,ROUND('Salary Worksheet'!G22*I11,2), ROUND('Salary Worksheet'!G8/12*I11,2)) -> 67462.67 | K11: 4 | L11: =IF($C$4=1,ROUND('Salary Worksheet'!H22*K11,2), ROUND('Salary Worksheet'!H8/12*K11,2)) -> 69486.67 | M11: 234242.01
A12: ='Salary Worksheet'!B9 -> Dave French | C12: 1 | D12: =IF($C$4=1,ROUND('Salary Worksheet'!D23*C12,2), ROUND('Salary Worksheet'!D9/12*C12,0)) -> 9487 | E12: 0.67 | F12: =IF($C$4=1,ROUND('Salary Worksheet'!E23*E12,2), ROUND('Salary Worksheet'!E9/12*E12,2)) -> 6547.13 | G12: 2 | H12: =IF($C$4=1,ROUND('Salary Worksheet'!F23*G12,2), ROUND('Salary Worksheet'!F9/12*G12,2)) -> 20130 | I12: 2 | J12: =IF($C$4=1,ROUND('Salary Worksheet'!G23*I12,2), ROUND('Salary Worksheet'!G9/12*I12,2)) -> 20733.83 | K12: 2 | L12: =IF($C$4=1,ROUND('Salary Worksheet'!H23*K12,2), ROUND('Salary Worksheet'!H9/12*K12,2)) -> 21355.83 | M12: 78253.79
A13: ='Salary Worksheet'!B10 -> Paul McGill | C13: 0.25 | D13: =IF($C$4=1,ROUND('Salary Worksheet'!D24*C13,2), ROUND('Salary Worksheet'!D10/12*C13,0)) -> 4073 | E13: 1 | F13: =IF($C$4=1,ROUND('Salary Worksheet'!E24*E13,2), ROUND('Salary Worksheet'!E10/12*E13,2)) -> 16779.92 | G13: 1 | H13: =IF($C$4=1,ROUND('Salary Worksheet'!F24*G13,2), ROUND('Salary Worksheet'!F10/12*G13,2)) -> 17283.33 | I13: 1 | J13: =IF($C$4=1,ROUND('Salary Worksheet'!G24*I13,2), ROUND('Salary Worksheet'!G10/12*I13,2)) -> 17801.83 | K13: 1 | L13: =IF($C$4=1,ROUND('Salary Worksheet'!H24*K13,2), ROUND('Salary Worksheet'!H10/12*K13,2)) -> 18335.92 | M13: 74274
A14: ='Salary Worksheet'!B11 -> Ed Mellinger | C14: 0.25 | D14: =IF($C$4=1,ROUND('Salary Worksheet'!D25*C14,2), ROUND('Salary Worksheet'!D11/12*C14,0)) -> 3798 | E14: 0 | F14: =IF($C$4=1,ROUND('Salary Worksheet'!E25*E14,2), ROUND('Salary Worksheet'!E11/12*E14,2)) -> 0 | G14: 0 | H14: =IF($C$4=1,ROUND('Salary Worksheet'!F25*G14,2), ROUND('Salary Worksheet'!F11/12*G14,2)) -> 0 | I14: 0 | J14: =IF($C$4=1,ROUND('Salary Worksheet'!G25*I14,2), ROUND('Salary Worksheet'!G11/12*I14,2)) -> 0 | K14: 0 | L14: =IF($C$4=1,ROUND('Salary Worksheet'!H25*K14,2), ROUND('Salary Worksheet'!H11/12*K14,2)) -> 0 | M14: 3798
A15: ='Salary Worksheet'!B12 -> Rich Schramm | C15: 0.25 | D15: =IF($C$4=1,ROUND('Salary Worksheet'!D26*C15,2), ROUND('Salary Worksheet'!D12/12*C15,0)) -> 3598 | E15: 0 | F15: =IF($C$4=1,ROUND('Salary Worksheet'!E26*E15,2), ROUND('Salary Worksheet'!E12/12*E15,2)) -> 0 | G15: 0 | H15: =IF($C$4=1,ROUND('Salary Worksheet'!F26*G15,2), ROUND('Salary Worksheet'!F12/12*G15,2)) -> 0 | I15: 0 | J15: =IF($C$4=1,ROUND('Salary Worksheet'!G26*I15,2), ROUND('Salary Worksheet'!G12/12*I15,2)) -> 0 | K15: 0 | L15: =IF($C$4=1,ROUND('Salary Worksheet'!H26*K15,2), ROUND('Salary Worksheet'!H12/12*K15,2)) -> 0 | M15: 3598
A16: ='Salary Worksheet'!B13 -> Mike Risi | C16: 0.25 | D16: =IF($C$4=1,ROUND('Salary Worksheet'!D27*C16,2), ROUND('Salary Worksheet'!D13/12*C16,0)) -> 3732 | E16: 0 | F16: =IF($C$4=1,ROUND('Salary Worksheet'!E27*E16,2), ROUND('Salary Worksheet'!E13/12*E16,2)) -> 0 | G16: 0 | H16: =IF($C$4=1,ROUND('Salary Worksheet'!F27*G16,2), ROUND('Salary Worksheet'!F13/12*G16,2)) -> 0 | I16: 0 | J16: =IF($C$4=1,ROUND('Salary Worksheet'!G27*I16,2), ROUND('Salary Worksheet'!G13/12*I16,2)) -> 0 | K16: 0 | L16: =IF($C$4=1,ROUND('Salary Worksheet'!H27*K16,2), ROUND('Salary Worksheet'!H13/12*K16,2)) -> 0 | M16: 3732
A17: ='Salary Worksheet'!B14 -> Jon Erickson | C17: 0.25 | D17: =IF($C$4=1,ROUND('Salary Worksheet'!D28*C17,2), ROUND('Salary Worksheet'!D14/12*C17,0)) -> 3511 | E17: 0 | F17: =IF($C$4=1,ROUND('Salary Worksheet'!E28*E17,2), ROUND('Salary Worksheet'!E14/12*E17,2)) -> 0 | G17: 0 | H17: =IF($C$4=1,ROUND('Salary Worksheet'!F28*G17,2), ROUND('Salary Worksheet'!F14/12*G17,2)) -> 0 | I17: 0 | J17: =IF($C$4=1,ROUND('Salary Worksheet'!G28*I17,2), ROUND('Salary Worksheet'!G14/12*I17,2)) -> 0 | K17: 0 | L17: =IF($C$4=1,ROUND('Salary Worksheet'!H28*K17,2), ROUND('Salary Worksheet'!H14/12*K17,2)) -> 0 | M17: 3511
A18: ='Salary Worksheet'!B15 -> Ray Thompson | C18: 0.25 | D18: =IF($C$4=1,ROUND('Salary Worksheet'!D29*C18,2), ROUND('Salary Worksheet'!D15/12*C18,0)) -> 2525 | E18: 0 | F18: =IF($C$4=1,ROUND('Salary Worksheet'!E29*E18,2), ROUND('Salary Worksheet'!E15/12*E18,2)) -> 0 | G18: 0 | H18: =IF($C$4=1,ROUND('Salary Worksheet'!F29*G18,2), ROUND('Salary Worksheet'!F15/12*G18,2)) -> 0 | I18: 0 | J18: =IF($C$4=1,ROUND('Salary Worksheet'!G29*I18,2), ROUND('Salary Worksheet'!G15/12*I18,2)) -> 0 | K18: 0 | L18: =IF($C$4=1,ROUND('Salary Worksheet'!H29*K18,2), ROUND('Salary Worksheet'!H15/12*K18,2)) -> 0 | M18: 2525
A19: ='Salary Worksheet'!B16 -> Duane Thompson | C19: 2.33 | D19: =IF($C$4=1,ROUND('Salary Worksheet'!D30*C19,2), ROUND('Salary Worksheet'!D16/12*C19,0)) -> 23669 | E19: 3 | F19: =IF($C$4=1,ROUND('Salary Worksheet'!E30*E19,2), ROUND('Salary Worksheet'!E16/12*E19,2)) -> 31390 | G19: 4 | H19: =IF($C$4=1,ROUND('Salary Worksheet'!F30*G19,2), ROUND('Salary Worksheet'!F16/12*G19,2)) -> 43109 | I19: 4 | J19: =IF($C$4=1,ROUND('Salary Worksheet'!G30*I19,2), ROUND('Salary Worksheet'!G16/12*I19,2)) -> 44402.33 | K19: 4 | L19: =IF($C$4=1,ROUND('Salary Worksheet'!H30*K19,2), ROUND('Salary Worksheet'!H16/12*K19,2)) -> 45734.33 | M19: 188304.66
A20: Subtotal Other Employee Salary | D20: =SUM(D10:D19) -> 133881 | F20: =SUM(F10:F19) -> 119260.88 | H20: =SUM(H10:H19) -> 146020 | J20: =SUM(J10:J19) -> 150400.66 | L20: =SUM(L10:L19) -> 154912.75 | M20: =SUM(J20+H20+F20+D20+L20) -> 704475.29
A21: POSTDOCS, GSRs, PART-TIME, TEMPS
A23: PostDoc(s) | C23: 0 | D23: =IF($C$4=1,ROUND('Salary Worksheet'!D28*C23,2), ROUND('Salary Worksheet'!D27/12*C23,0)) -> 0 | E23: 0 | F23: =IF($C$4=1,ROUND('Salary Worksheet'!E28*E23,2), ROUND('Salary Worksheet'!E27/12*E23,0)) -> 0 | G23: 0 | H23: =IF($C$4=1,ROUND('Salary Worksheet'!F28*G23,2), ROUND('Salary Worksheet'!F27/12*G23,0)) -> 0 | I23: 0 | J23: =IF($C$4=1,ROUND('Salary Worksheet'!G28*I23,2), ROUND('Salary Worksheet'!G27/12*I23,0)) -> 0 | K23: 0 | L23: =IF($C$4=1,ROUND('Salary Worksheet'!H28*K23,2), ROUND('Salary Worksheet'!H27/12*K23,0)) -> 0 | M23: =SUM(J23+H23+F23+D23+L23) -> 0
A24: Graduate Student(s) (GSRs) | C24: 0 | D24: =IF($C$4=1,ROUND('Salary Worksheet'!D30*C24,2), ROUND('Salary Worksheet'!D29/12*C24,0)) -> 0 | E24: 0 | F24: =IF($C$4=1,ROUND('Salary Worksheet'!E30*E24,2), ROUND('Salary Worksheet'!E29/12*E24,0)) -> 0 | G24: 0 | H24: =IF($C$4=1,ROUND('Salary Worksheet'!F30*G24,2), ROUND('Salary Worksheet'!F29/12*G24,0)) -> 0 | I24: 0 | J24: =IF($C$4=1,ROUND('Salary Worksheet'!G30*I24,2), ROUND('Salary Worksheet'!G29/12*I24,0)) -> 0 | K24: 0 | L24: =IF($C$4=1,ROUND('Salary Worksheet'!H30*K24,2), ROUND('Salary Worksheet'!H29/12*K24,0)) -> 0 | M24: 0
A25: NA PT (30-39 hrs) | C25: 0 | D25: =IF($C$4=1,ROUND('Salary Worksheet'!E43*C25,2), ROUND('Salary Worksheet'!E36/12*C25,0)) -> 0 | E25: 0 | F25: =IF($C$4=1,ROUND('Salary Worksheet'!F43*E25,2), ROUND('Salary Worksheet'!F36/12*E25,0)) -> 0 | G25: 0 | H25: =IF($C$4=1,ROUND('Salary Worksheet'!G43*G25,2), ROUND('Salary Worksheet'!G36/12*G25,0)) -> 0 | I25: 0 | J25: =IF($C$4=1,ROUND('Salary Worksheet'!H43*I25,2), ROUND('Salary Worksheet'!H36/12*I25,0)) -> 0 | K25: 0 | L25: =IF($C$4=1,ROUND('Salary Worksheet'!I43*K25,2), ROUND('Salary Worksheet'!I36/12*K25,0)) -> 0 | M25: 0
A26: NA PT (30-39 hrs) | C26: 0 | D26: =IF($C$4=1,ROUND('Salary Worksheet'!E44*C26,2), ROUND('Salary Worksheet'!E37/12*C26,0)) -> 0 | E26: 0 | F26: =IF($C$4=1,ROUND('Salary Worksheet'!F44*E26,2), ROUND('Salary Worksheet'!F37/12*E26,0)) -> 0 | G26: 0 | H26: =IF($C$4=1,ROUND('Salary Worksheet'!G44*G26,2), ROUND('Salary Worksheet'!G37/12*G26,0)) -> 0 | I26: 0 | J26: =IF($C$4=1,ROUND('Salary Worksheet'!H44*I26,2), ROUND('Salary Worksheet'!H37/12*I26,0)) -> 0 | K26: 0 | L26: =IF($C$4=1,ROUND('Salary Worksheet'!I44*K26,2), ROUND('Salary Worksheet'!I37/12*K26,0)) -> 0 | M26: 0
A27: Part-time (<= 29 hrs/wk) 1 | C27: 0 | D27: =IF($C$4=1,ROUND('Salary Worksheet'!E45*C27,2), ROUND('Salary Worksheet'!E38/12*C27,0)) -> 0 | E27: 0 | F27: =IF($C$4=1,ROUND('Salary Worksheet'!F45*E27,2), ROUND('Salary Worksheet'!F38/12*E27,0)) -> 0 | G27: 0 | H27: =IF($C$4=1,ROUND('Salary Worksheet'!G45*G27,2), ROUND('Salary Worksheet'!G38/12*G27,0)) -> 0 | I27: 0 | J27: =IF($C$4=1,ROUND('Salary Worksheet'!H45*I27,2), ROUND('Salary Worksheet'!H38/12*I27,0)) -> 0 | K27: 0 | L27: =IF($C$4=1,ROUND('Salary Worksheet'!I45*K27,2), ROUND('Salary Worksheet'!I38/12*K27,0)) -> 0 | M27: 0
A28: Part-time (<= 29 hrs/wk) 2 | C28: 0 | D28: =IF($C$4=1,ROUND('Salary Worksheet'!E46*C28,2), ROUND('Salary Worksheet'!E39/12*C28,0)) -> 0 | E28: 0 | F28: =IF($C$4=1,ROUND('Salary Worksheet'!F46*E28,2), ROUND('Salary Worksheet'!F39/12*E28,0)) -> 0 | G28: 0 | H28: =IF($C$4=1,ROUND('Salary Worksheet'!G46*G28,2), ROUND('Salary Worksheet'!G39/12*G28,0)) -> 0 | I28: 0 | J28: =IF($C$4=1,ROUND('Salary Worksheet'!H46*I28,2), ROUND('Salary Worksheet'!H39/12*I28,0)) -> 0 | K28: 0 | L28: =IF($C$4=1,ROUND('Salary Worksheet'!I46*K28,2), ROUND('Salary Worksheet'!I39/12*K28,0)) -> 0 | M28: 0
A29: Temporary Employee 1 | C29: 0 | D29: =IF($C$4=1,ROUND('Salary Worksheet'!E47*C29,2), ROUND('Salary Worksheet'!E40/12*C29,0)) -> 0 | E29: 0 | F29: =IF($C$4=1,ROUND('Salary Worksheet'!F47*E29,2), ROUND('Salary Worksheet'!F40/12*E29,0)) -> 0 | G29: 0 | H29: =IF($C$4=1,ROUND('Salary Worksheet'!G47*G29,2), ROUND('Salary Worksheet'!G40/12*G29,0)) -> 0 | I29: 0 | J29: =IF($C$4=1,ROUND('Salary Worksheet'!H47*I29,2), ROUND('Salary Worksheet'!H40/12*I29,0)) -> 0 | K29: 0 | L29: =IF($C$4=1,ROUND('Salary Worksheet'!I47*K29,2), ROUND('Salary Worksheet'!I40/12*K29,0)) -> 0 | M29: 0
A30: Temporary Employee 2 | C30: 0 | D30: =IF($C$4=1,ROUND('Salary Worksheet'!E48*C30,2), ROUND('Salary Worksheet'!E41/12*C30,0)) -> 0 | E30: 0 | F30: =IF($C$4=1,ROUND('Salary Worksheet'!F48*E30,2), ROUND('Salary Worksheet'!F41/12*E30,0)) -> 0 | G30: 0 | H30: =IF($C$4=1,ROUND('Salary Worksheet'!G48*G30,2), ROUND('Salary Worksheet'!G41/12*G30,0)) -> 0 | I30: 0 | J30: =IF($C$4=1,ROUND('Salary Worksheet'!H48*I30,2), ROUND('Salary Worksheet'!H41/12*I30,0)) -> 0 | K30: 0 | L30: =IF($C$4=1,ROUND('Salary Worksheet'!I48*K30,2), ROUND('Salary Worksheet'!I41/12*K30,0)) -> 0 | M30: 0
A31: Subtotal Other Personnel Salary | D31: =SUM(D20:D29) -> 133881 | F31: =SUM(F20:F29) -> 119260.88 | H31: =SUM(H20:H29) -> 146020 | J31: =SUM(J20:J29) -> 150400.66 | L31: =SUM(L20:L29) -> 154912.75 | M31: 704475.29
A32: Total Salary & Wages | D32: =SUM(D31+D9) -> 133881 | F32: =SUM(F31+F9) -> 119260.88 | H32: =SUM(H31+H9) -> 146020 | J32: =SUM(J31+J9) -> 150400.66 | L32: =SUM(L31+L9) -> 154912.75 | M32: 704475.29
A33: FRINGE BENEFITS
A34: Full-time (Regular) | B34: 0.5715 | D34: =((D9+D20)*$B$34) -> 76512.9915 | F34: =((F9+F20)*$B$34) -> 68157.59292 | H34: =((H9+H20)*$B$34) -> 83450.43 | J34: =((J9+J20)*$B$34) -> 85953.97719 | L34: =((L9+L20)*$B$34) -> 88532.63662 | M34: =SUM(J34+H34+F34+D34+L34) -> 402607.6282
A35: PostDoc | B35: 0.4123 | D35: =D23*$B$35 -> 0 | F35: =F23*$B$35 -> 0 | H35: =H23*$B$35 -> 0 | J35: =J23*$B$35 -> 0 | L35: =L23*$B$35 -> 0 | M35: 0
A36: PT (30-39 hrs) | B36: 0.5715 | D36: =(SUM(D25:D26))*$B$36 -> 0 | F36: =(SUM(F25:F26)*$B$36) -> 0 | H36: =(SUM(H25:H26)*$B$36) -> 0 | J36: =(SUM(J25:J26)*$B$36) -> 0 | L36: =(SUM(L25:L26)*$B$36) -> 0 | M36: 0
A37: GSRs + PT (20-29 hrs) | B37: 0.3062 | D37: =(SUM(D24,D27,D28))*$B$37 -> 0 | F37: =(SUM(F24,F27,F28))*$B$37 -> 0 | H37: =(SUM(H24,H27,H28))*$B$37 -> 0 | J37: =(SUM(J24,J27,J28))*$B$37 -> 0 | L37: =(SUM(L24,L27,L28))*$B$37 -> 0 | M37: 0
A38: Temp | B38: 0.1111 | D38: =(D29+D30)*$B$38 -> 0 | F38: =(F29+F30)*$B$38 -> 0 | H38: =(H29+H30)*$B$38 -> 0 | J38: =(J29+J30)*$B$38 -> 0 | L38: =(L29+L30)*$B$38 -> 0 | M38: 0
A39: Total Fringe Benefits | D39: =SUM(D34:D38) -> 76512.9915 | F39: =SUM(F34:F38) -> 68157.59292 | H39: =SUM(H34:H38) -> 83450.43 | J39: =SUM(J34:J38) -> 85953.97719 | L39: =SUM(L34:L38) -> 88532.63662 | M39: 402607.6282
A40: Total Salary & Benefits | D40: =SUM(D39,D32) -> 210393.9915 | F40: =SUM(F39,F32) -> 187418.4729 | H40: =SUM(H39,H32) -> 229470.43 | J40: =SUM(J39,J32) -> 236354.6372 | L40: =SUM(L39,L32) -> 243445.3866 | M40: 1107082.918
A41: CAPITAL EQUIPMENT (items >$5K)
A42: Computer Hardware | D42: 8250 | F42: 8250 | M42: =SUM(J42+H42+F42+D42+L42) -> 16500
A43: CIP: MARS Node Upgrade | D43: ='CIP MARS Node w UW subaward'!D117 -> 190597.423 | F43: ='CIP MARS Node w UW subaward'!F117 -> 47243.15589 | M43: =SUM(J43+H43+F43+D43+L43) -> 237840.5789
M44: 0
M45: 0
M46: 0
M47: 0
M48: 0
M49: 0
M50: 0
M51: 0
A52: Total Equipment | D52: =SUM(D42:D51) -> 198847.423 | F52: =SUM(F42:F51) -> 55493.15589 | H52: =SUM(H42:H51) -> 0 | J52: =SUM(J42:J51) -> 0 | L52: =SUM(L42:L51) -> 0 | M52: =SUM(L52,J52,H52,F52,D52) -> 254340.5789
A53: TRAVEL
A54: Travel - Domestic | D54: 1000 | F54: 1000 | H54: 1000 | J54: 1000 | L54: 1000 | M54: =SUM(L54,J54,H54,F54,D54) -> 5000
A55: Travel - Foreign | M55: =SUM(L55,J55,H55,F55,D55) -> 0
A56: Total Travel | D56: =SUM(D54:D55) -> 1000 | F56: =SUM(F54:F55) -> 1000 | H56: =SUM(H54:H55) -> 1000 | J56: =SUM(J54:J55) -> 1000 | L56: =SUM(L54:L55) -> 1000 | M56: =SUM(L56,J56,H56,F56,D56) -> 5000
A57: PARTICIPANT SUPPORT
A58: Stipends | M58: =SUM(L58,J58,H58,F58,D58) -> 0
A59: Travel | M59: =SUM(L59,J59,H59,F59,D59) -> 0
A60: Subsistence | M60: =SUM(L60,J60,H60,F60,D60) -> 0
A61: Other | M61: =SUM(L61,J61,H61,F61,D61) -> 0
A62: Total Participant Support | D62: =SUM(D58:D61) -> 0 | F62: =SUM(F58:F61) -> 0 | H62: =SUM(H58:H61) -> 0 | J62: =SUM(J58:J61) -> 0 | L62: =SUM(L58:L61) -> 0 | M62: =SUM(L62,J62,H62,F62,D62) -> 0
A63: MATERIALS & SUPPLIES
A64: Supplies computer hardware | D64: =750*1.1 -> 825 | F64: =750*1.1 -> 825 | H64: =750*1.1 -> 825 | J64: =750*1.1 -> 825 | L64: =750*1.1 -> 825 | M64: =SUM(L64,J64,H64,F64,D64) -> 4125
A65: Computer software | D65: 200 | F65: 200 | H65: 200 | J65: 200 | L65: 200 | M65: =SUM(L65,J65,H65,F65,D65) -> 1000
A66: Non-Cap Equipment | D66: =4500*1.1 -> 4950 | F66: =4500*1.1 -> 4950 | H66: =4500*1.1 -> 4950 | J66: =4500*1.1 -> 4950 | L66: =4500*1.1 -> 4950 | M66: 24750
A67: Supplies General | D67: =1.1*2000 -> 2200 | F67: =1.1*2000 -> 2200 | H67: =1.1*2000 -> 2200 | J67: =1.1*2000 -> 2200 | L67: =1.1*2000 -> 2200 | M67: 11000
M68: 0
M69: 0
M70: 0
M71: 0
M72: 0
M73: 0
A74: Total Materials & Supplies | D74: =SUM(D64:D73) -> 8175 | F74: =SUM(F64:F73) -> 8175 | H74: =SUM(H64:H73) -> 8175 | J74: =SUM(J64:J73) -> 8175 | L74: =SUM(L64:L73) -> 8175 | M74: =SUM(L74,J74,H74,F74,D74) -> 40875
A75: PUBLICATIONS/DOCUMENTATION
M76: =SUM(L76,J76,H76,F76,D76) -> 0
M77: =SUM(L77,J77,H77,F77,D77) -> 0
A78: Total Publications | D78: =SUM(D76) -> 0 | F78: =SUM(F76) -> 0 | H78: =SUM(H76:H76) -> 0 | J78: =SUM(J76:J76) -> 0 | L78: =SUM(L76:L76) -> 0 | M78: =SUM(L78,J78,H78,F78,D78) -> 0
A79: OUTSIDE SERVICES
A80: Router/Switch maintenance | D80: 1800 | F80: 1854 | H80: 1910 | J80: 1967 | L80: 2026 | M80: =SUM(L80,J80,H80,F80,D80) -> 9557
A81: Software/Hardware maintenance Independent Contractor | H81: 44290 | J81: 45619 | L81: 46987 | M81: 136896
A82: Right of way MLHD | D82: 1460 | F82: 1504 | H82: 1549 | J82: 1595 | L82: 1643.24 | M82: 7751.24
A83: Linda Kuhnz Actual Impacts Assesment (AIA) | J83: 31150 | M83: 31150
A84: ABA Consultants Sample processing for AIA | J84: 24600 | M84: 24600
A85: Total Outside Services | D85: =SUM(D80:D84) -> 3260 | F85: =SUM(F80:F84) -> 3358 | H85: =SUM(H80:H84) -> 47749 | J85: =SUM(J80:J84) -> 104931 | L85: =SUM(L80:L84) -> 50656.24 | M85: 209954.24
A86: SUBAWARDS
M87: =SUM(L87,J87,H87,F87,D87) -> 0
M88: =SUM(L88,J88,H88,F88,D88) -> 0
M89: =SUM(L89,J89,H89,F89,D89) -> 0
M90: 0
M91: 0
M92: 0
M93: 0
M94: 0
M95: 0
A96: UW APL Subaward | D96: 291756 | F96: 137802 | M96: 429558
A97: Total Subawards | D97: =SUM(D87:D96) -> 291756 | F97: =SUM(F87:F96) -> 137802 | H97: =SUM(H87:H96) -> 0 | J97: =SUM(J87:J96) -> 0 | L97: =SUM(L87:L96) -> 0 | M97: =SUM(L97,J97,H97,F97,D97) -> 429558
A98: Subawards subject to OH | D98: ='Subaward Worksheet'!B35 -> 25000 | F98: ='Subaward Worksheet'!C35 -> 0 | H98: ='Subaward Worksheet'!D35 -> 0 | J98: ='Subaward Worksheet'!E35 -> 0 | L98: ='Subaward Worksheet'!F35 -> 0
A99: OH on Subawards | D99: ='Subaward Worksheet'!$B$36 -> 13125 | F99: ='Subaward Worksheet'!$C$36 -> 0 | H99: ='Subaward Worksheet'!$D$36 -> 0 | J99: ='Subaward Worksheet'!$E$36 -> 0 | L99: ='Subaward Worksheet'!$F$36 -> 0 | M99: =SUM(L99,J99,H99,F99,D99) -> 13125
A100: SHIP TIME | B100: Rate | C100: # Days | E100: # Days | G100: # Days | I100: # Days | K100: # Days
C101: 0 | D101: =B101*C101 -> 0 | F101: =29500*E101 -> 0 | H101: =29500*G101 -> 0 | J101: =29500*I101 -> 0 | L101: =29500*K101 -> 0 | M101: =SUM(L101,J101,H101,F101,D101) -> 0
C102: 0 | D102: =B102*C102 -> 0 | F102: =16900*E102 -> 0 | H102: =16900*G102 -> 0 | J102: =16900*I102 -> 0 | L102: =16900*K102 -> 0 | M102: =SUM(L102,J102,H102,F102,D102) -> 0
A103: Rachel Carson w Ventana | B103: ='Projected Ship Rates'!C12 -> 21800 | C103: 4 | D103: =B103*C103 -> 87200 | E103: 4 | F103: ='Projected Ship Rates'!D12*E103 -> 90720 | G103: 2 | H103: ='Projected Ship Rates'!E12*G103 -> 47400 | I103: 10 | J103: ='Projected Ship Rates'!F12*I103 -> 245000 | K103: 8 | L103: ='Projected Ship Rates'!G12*K103 -> 203920 | M103: =SUM(L103,J103,H103,F103,D103) -> 674240
D104: =B104*C104 -> 0 | F104: =B104*E104 -> 0 | H104: =B104*G104 -> 0 | J104: =B104*I104 -> 0 | L104: =B104*K104 -> 0 | M104: =SUM(L104,J104,H104,F104,D104) -> 0
A105: Total Ship Time | D105: =SUM(D103:D104) -> 87200 | F105: =SUM(F103:F104) -> 90720 | H105: =SUM(H103:H104) -> 47400 | J105: =SUM(J103:J104) -> 245000 | L105: =SUM(L103:L104) -> 203920 | M105: =SUM(L105,J105,H105,F105,D105) -> 674240
A106: TUITION/FEES | C106: Qtrs. | E106: Qtrs. | G106: Qtrs. | I106: Qtrs. | K106: Qtrs.
A107: UCSC Grad Student | D107: =(C107*'Salary Worksheet'!D31) -> 0 | F107: =(E107*'Salary Worksheet'!E31) -> 0 | H107: =(G107*'Salary Worksheet'!F31) -> 0 | I107: 0 | J107: =(I107*'Salary Worksheet'!G31) -> 0 | K107: 0 | L107: =(K107*'Salary Worksheet'!H31) -> 0 | M107: =SUM(L107,J107,H107,F107,D107) -> 0
A108: UCSC Grad Student - Nonres. | C108: 0 | D108: =(C108*'Salary Worksheet'!D32) -> 0 | E108: 0 | F108: =(E108*'Salary Worksheet'!E32) -> 0 | G108: 0 | H108: =(G108*'Salary Worksheet'!F32) -> 0 | I108: 0 | J108: =(I108*'Salary Worksheet'!G32) -> 0 | K108: 0 | L108: =(K108*'Salary Worksheet'!H32) -> 0 | M108: =SUM(L108,J108,H108,F108,D108) -> 0
A109: Total Tuition/Fees | D109: =SUM(D107:D108) -> 0 | F109: =SUM(F107:F108) -> 0 | H109: =SUM(H107:H108) -> 0 | J109: =SUM(J107:J108) -> 0 | L109: =SUM(L107:L108) -> 0 | M109: =SUM(L109,J109,H109,F109,D109) -> 0
A110: SHIPPING
M111: =SUM(L111,J111,H111,F111,D111) -> 0
A112: Total Shipping | D112: =SUM(D111) -> 0 | F112: =SUM(F111) -> 0 | H112: =SUM(H111:H111) -> 0 | J112: =SUM(J111:J111) -> 0 | L112: =SUM(L111:L111) -> 0 | M112: 0
A114: TOTAL DIRECT COSTS | D114: =SUM(D112,D109,D105,D97,D85,D78,D74,D62,D56,D52,D40) -> 800632.4145 | F114: =SUM(F112,F109,F105,F97,F85,F78,F74,F62,F56,F52,F40) -> 483966.6288 | H114: =SUM(H112,H109,H105,H97,H85,H78,H74,H62,H56,H52,H40) -> 333794.43 | J114: =SUM(J112,J109,J105,J97,J85,J78,J74,J62,J56,J52,J40) -> 595460.6372 | L114: =SUM(L112,L109,L105,L97,L85,L78,L74,L62,L56,L52,L40) -> 507196.6266 | M114: 2721050.737
A115: MODIFIED TOTAL DIRECT COST BASE | D115: =D114-D97+D98-D62-D52-D105 -> 247828.9915 | F115: =F114-F97+F98-F62-F52-F105 -> 199951.4729 | H115: =H114-H97+H98-H62-H52-H105 -> 286394.43 | J115: =J114-J97+J98-J62-J52-J105 -> 350460.6372 | L115: =L114-L97+L98-L62-L52-L105 -> 303276.6266 | M115: 1387912.158
A116: TOTAL INDIRECT COSTS | C116: 0.525 | D116: =ROUND(D115*$C$116,0) -> 130110 | F116: =ROUND(F115*$C$116,0) -> 104975 | H116: =ROUND(H115*$C$116,0) -> 150357 | J116: 183992 | L116: 159220 | M116: 728654
A117: TOTAL DIRECT & INDIRECT COSTS | D117: =+D116+D114 -> 930742.4145 | F117: =+F116+F114 -> 588941.6288 | H117: =+H116+H114 -> 484151.43 | J117: =+J116+J114 -> 779452.6372 | L117: =+L116+L114 -> 666416.6266 | M117: 3449704.737

Sheet Sheet1

Sheet CIP MARS Node w UW subaward
A1: CIP: MARS Node Upgrade | L1: Updated:
C2: 03/01/21-02/28/22 | E2: 03/01/22-02/28/23 | G2: 03/01/23-02/28/24 | I2: 03/01/24-02/28/25 | K2: 03/01/25-02/28/26
A3: TOTAL | C3: =D117 -> 190597.423 | E3: =F117 -> 47243.15589 | G3: =H117 -> 0 | I3: =J117 -> 0 | K3: =L117 -> 0 | M3: =M117 -> 237840.5789
A4: SALARY/WAGES | C4: 2 | D4: Y1 | E4: =IF($C$4=1, "HOURS", "MONTHS") -> MONTHS | F4: Y2 | G4: =IF($C$4=1, "HOURS", "MONTHS") -> MONTHS | H4: Y3 | I4: =IF($C$4=1, "HOURS", "MONTHS") -> MONTHS | J4: Y4 | K4: =IF($C$4=1, "HOURS", "MONTHS") -> MONTHS | L4: Y5 | M4: Total
A6: ='Salary Worksheet'!B4 -> Mike Kelly | C6: 0 | D6: =IF($C$4=1,ROUND('Salary Worksheet'!D18*C6,2), ROUND('Salary Worksheet'!D4/12*C6,2)) -> 0 | E6: 0 | F6: =IF($C$4=1,ROUND('Salary Worksheet'!E18*E6,2), ROUND('Salary Worksheet'!E4/12*E6,2)) -> 0 | G6: 0 | H6: =IF($C$4=1,ROUND('Salary Worksheet'!F18*G6,2), ROUND('Salary Worksheet'!F4/12*G6,0)) -> 0 | I6: 0 | J6: =IF($C$4=1,ROUND('Salary Worksheet'!G18*I6,2), ROUND('Salary Worksheet'!G4/12*I6,0)) -> 0 | K6: 0 | L6: =IF($C$4=1,ROUND('Salary Worksheet'!H18*K6,2), ROUND('Salary Worksheet'!H4/12*K6,0)) -> 0 | M6: =SUM(L6,J6,H6,F6,D6) -> 0
C7: 0 | D7: =IF($C$4=1,ROUND('Salary Worksheet'!D19*C7,2), ROUND('Salary Worksheet'!D5/12*C7,2)) -> 0 | E7: 0 | F7: =IF($C$4=1,ROUND('Salary Worksheet'!E19*E7,2), ROUND('Salary Worksheet'!E5/12*E7,2)) -> 0 | G7: 0 | H7: =IF($C$4=1,ROUND('Salary Worksheet'!F19*G7,2), ROUND('Salary Worksheet'!F5/12*G7,0)) -> 0 | I7: 0 | J7: =IF($C$4=1,ROUND('Salary Worksheet'!G19*I7,2), ROUND('Salary Worksheet'!G5/12*I7,0)) -> 0 | K7: 0 | L7: =IF($C$4=1,ROUND('Salary Worksheet'!H19*K7,2), ROUND('Salary Worksheet'!H5/12*K7,0)) -> 0 | M7: =SUM(J7+H7+F7+D7+L7) -> 0
C8: 0 | D8: =IF($C$4=1,ROUND('Salary Worksheet'!D20*C8,2), ROUND('Salary Worksheet'!D6/12*C8,2)) -> 0 | E8: 0 | F8: =IF($C$4=1,ROUND('Salary Worksheet'!E20*E8,2), ROUND('Salary Worksheet'!E6/12*E8,2)) -> 0 | G8: 0 | H8: =IF($C$4=1,ROUND('Salary Worksheet'!F20*G8,2), ROUND('Salary Worksheet'!F6/12*G8,0)) -> 0 | I8: 0 | J8: =IF($C$4=1,ROUND('Salary Worksheet'!G20*I8,2), ROUND('Salary Worksheet'!G6/12*I8,0)) -> 0 | K8: 0 | L8: =IF($C$4=1,ROUND('Salary Worksheet'!H20*K8,2), ROUND('Salary Worksheet'!H6/12*K8,0)) -> 0 | M8: =SUM(J8+H8+F8+D8+L8) -> 0
A9: Subtotal Sr. Personnel Salary | D9: =SUM(D6:D8) -> 0 | F9: =SUM(F6:F8) -> 0 | H9: =SUM(H6:H8) -> 0 | J9: =SUM(J6:J8) -> 0 | L9: =SUM(L6:L8) -> 0 | M9: =SUM(J9+H9+F9+D9+L9) -> 0
A10: ='Salary Worksheet'!B7 -> Craig Dawe | C10: 2 | D10: =IF($C$4=1,ROUND('Salary Worksheet'!D21*C10,2), ROUND('Salary Worksheet'!D7/12*C10,0)) -> 31795 | E10: 1 | F10: =IF($C$4=1,ROUND('Salary Worksheet'!E21*E10,2), ROUND('Salary Worksheet'!E7/12*E10,2)) -> 16374.42 | G10: 0 | H10: =IF($C$4=1,ROUND('Salary Worksheet'!F21*G10,2), ROUND('Salary Worksheet'!F7/12*G10,2)) -> 0 | I10: 0 | J10: =IF($C$4=1,ROUND('Salary Worksheet'!G21*I10,2), ROUND('Salary Worksheet'!G7/12*I10,2)) -> 0 | K10: 0 | L10: =IF($C$4=1,ROUND('Salary Worksheet'!H21*K10,2), ROUND('Salary Worksheet'!H7/12*K10,2)) -> 0 | M10: =SUM(L10+J10+H10+F10+D10) -> 48169.42
A11: ='Salary Worksheet'!B8 -> MARS Operations Manager | C11: 0 | D11: =IF($C$4=1,ROUND('Salary Worksheet'!D22*C11,2), ROUND('Salary Worksheet'!D8/12*C11,0)) -> 0 | E11: 0 | F11: =IF($C$4=1,ROUND('Salary Worksheet'!E22*E11,2), ROUND('Salary Worksheet'!E8/12*E11,2)) -> 0 | G11: 0 | H11: =IF($C$4=1,ROUND('Salary Worksheet'!F22*G11,2), ROUND('Salary Worksheet'!F8/12*G11,2)) -> 0 | I11: 0 | J11: =IF($C$4=1,ROUND('Salary Worksheet'!G22*I11,2), ROUND('Salary Worksheet'!G8/12*I11,2)) -> 0 | K11: 0 | L11: =IF($C$4=1,ROUND('Salary Worksheet'!H22*K11,2), ROUND('Salary Worksheet'!H8/12*K11,2)) -> 0 | M11: 0
A12: ='Salary Worksheet'!B9 -> Dave French | C12: 0.67 | D12: =IF($C$4=1,ROUND('Salary Worksheet'!D23*C12,2), ROUND('Salary Worksheet'!D9/12*C12,0)) -> 6356 | E12: 0.33 | F12: =IF($C$4=1,ROUND('Salary Worksheet'!E23*E12,2), ROUND('Salary Worksheet'!E9/12*E12,2)) -> 3224.71 | G12: 0 | H12: =IF($C$4=1,ROUND('Salary Worksheet'!F23*G12,2), ROUND('Salary Worksheet'!F9/12*G12,2)) -> 0 | I12: 0 | J12: =IF($C$4=1,ROUND('Salary Worksheet'!G23*I12,2), ROUND('Salary Worksheet'!G9/12*I12,2)) -> 0 | K12: 0 | L12: =IF($C$4=1,ROUND('Salary Worksheet'!H23*K12,2), ROUND('Salary Worksheet'!H9/12*K12,2)) -> 0 | M12: 9580.71
A13: ='Salary Worksheet'!B10 -> Paul McGill | C13: 0.25 | D13: =IF($C$4=1,ROUND('Salary Worksheet'!D24*C13,2), ROUND('Salary Worksheet'!D10/12*C13,0)) -> 4073 | E13: 0 | F13: =IF($C$4=1,ROUND('Salary Worksheet'!E24*E13,2), ROUND('Salary Worksheet'!E10/12*E13,2)) -> 0 | G13: 0 | H13: =IF($C$4=1,ROUND('Salary Worksheet'!F24*G13,2), ROUND('Salary Worksheet'!F10/12*G13,2)) -> 0 | I13: 0 | J13: =IF($C$4=1,ROUND('Salary Worksheet'!G24*I13,2), ROUND('Salary Worksheet'!G10/12*I13,2)) -> 0 | K13: 0 | L13: =IF($C$4=1,ROUND('Salary Worksheet'!H24*K13,2), ROUND('Salary Worksheet'!H10/12*K13,2)) -> 0 | M13: 4073
A14: ='Salary Worksheet'!B11 -> Ed Mellinger | C14: 0.25 | D14: =IF($C$4=1,ROUND('Salary Worksheet'!D25*C14,2), ROUND('Salary Worksheet'!D11/12*C14,0)) -> 3798 | E14: 0 | F14: =IF($C$4=1,ROUND('Salary Worksheet'!E25*E14,2), ROUND('Salary Worksheet'!E11/12*E14,2)) -> 0 | G14: 0 | H14: =IF($C$4=1,ROUND('Salary Worksheet'!F25*G14,2), ROUND('Salary Worksheet'!F11/12*G14,2)) -> 0 | I14: 0 | J14: =IF($C$4=1,ROUND('Salary Worksheet'!G25*I14,2), ROUND('Salary Worksheet'!G11/12*I14,2)) -> 0 | K14: 0 | L14: =IF($C$4=1,ROUND('Salary Worksheet'!H25*K14,2), ROUND('Salary Worksheet'!H11/12*K14,2)) -> 0 | M14: 3798
A15: ='Salary Worksheet'!B12 -> Rich Schramm | C15: 0.25 | D15: =IF($C$4=1,ROUND('Salary Worksheet'!D26*C15,2), ROUND('Salary Worksheet'!D12/12*C15,0)) -> 3598 | E15: 0 | F15: =IF($C$4=1,ROUND('Salary Worksheet'!E26*E15,2), ROUND('Salary Worksheet'!E12/12*E15,2)) -> 0 | G15: 0 | H15: =IF($C$4=1,ROUND('Salary Worksheet'!F26*G15,2), ROUND('Salary Worksheet'!F12/12*G15,2)) -> 0 | I15: 0 | J15: =IF($C$4=1,ROUND('Salary Worksheet'!G26*I15,2), ROUND('Salary Worksheet'!G12/12*I15,2)) -> 0 | K15: 0 | L15: =IF($C$4=1,ROUND('Salary Worksheet'!H26*K15,2), ROUND('Salary Worksheet'!H12/12*K15,2)) -> 0 | M15: 3598
A16: ='Salary Worksheet'!B13 -> Mike Risi | C16: 0.25 | D16: =IF($C$4=1,ROUND('Salary Worksheet'!D27*C16,2), ROUND('Salary Worksheet'!D13/12*C16,0)) -> 3732 | E16: 0 | F16: =IF($C$4=1,ROUND('Salary Worksheet'!E27*E16,2), ROUND('Salary Worksheet'!E13/12*E16,2)) -> 0 | G16: 0 | H16: =IF($C$4=1,ROUND('Salary Worksheet'!F27*G16,2), ROUND('Salary Worksheet'!F13/12*G16,2)) -> 0 | I16: 0 | J16: =IF($C$4=1,ROUND('Salary Worksheet'!G27*I16,2), ROUND('Salary Worksheet'!G13/12*I16,2)) -> 0 | K16: 0 | L16: =IF($C$4=1,ROUND('Salary Worksheet'!H27*K16,2), ROUND('Salary Worksheet'!H13/12*K16,2)) -> 0 | M16: 3732
A17: ='Salary Worksheet'!B14 -> Jon Erickson | C17: 0.75 | D17: =IF($C$4=1,ROUND('Salary Worksheet'!D28*C17,2), ROUND('Salary Worksheet'!D14/12*C17,0)) -> 10534 | E17: 0 | F17: =IF($C$4=1,ROUND('Salary Worksheet'!E28*E17,2), ROUND('Salary Worksheet'!E14/12*E17,2)) -> 0 | G17: 0 | H17: =IF($C$4=1,ROUND('Salary Worksheet'!F28*G17,2), ROUND('Salary Worksheet'!F14/12*G17,2)) -> 0 | I17: 0 | J17: =IF($C$4=1,ROUND('Salary Worksheet'!G28*I17,2), ROUND('Salary Worksheet'!G14/12*I17,2)) -> 0 | K17: 0 | L17: =IF($C$4=1,ROUND('Salary Worksheet'!H28*K17,2), ROUND('Salary Worksheet'!H14/12*K17,2)) -> 0 | M17: 10534
A18: ='Salary Worksheet'!B15 -> Ray Thompson | C18: 0.25 | D18: =IF($C$4=1,ROUND('Salary Worksheet'!D29*C18,2), ROUND('Salary Worksheet'!D15/12*C18,0)) -> 2525 | E18: 0 | F18: =IF($C$4=1,ROUND('Salary Worksheet'!E29*E18,2), ROUND('Salary Worksheet'!E15/12*E18,2)) -> 0 | G18: 0 | H18: =IF($C$4=1,ROUND('Salary Worksheet'!F29*G18,2), ROUND('Salary Worksheet'!F15/12*G18,2)) -> 0 | I18: 0 | J18: =IF($C$4=1,ROUND('Salary Worksheet'!G29*I18,2), ROUND('Salary Worksheet'!G15/12*I18,2)) -> 0 | K18: 0 | L18: =IF($C$4=1,ROUND('Salary Worksheet'!H29*K18,2), ROUND('Salary Worksheet'!H15/12*K18,2)) -> 0 | M18: 2525
A19: ='Salary Worksheet'!B16 -> Duane Thompson | C19: 1.33 | D19: =IF($C$4=1,ROUND('Salary Worksheet'!D30*C19,2), ROUND('Salary Worksheet'!D16/12*C19,0)) -> 13511 | E19: 1 | F19: =IF($C$4=1,ROUND('Salary Worksheet'!E30*E19,2), ROUND('Salary Worksheet'!E16/12*E19,2)) -> 10463.33 | G19: 0 | H19: =IF($C$4=1,ROUND('Salary Worksheet'!F30*G19,2), ROUND('Salary Worksheet'!F16/12*G19,2)) -> 0 | I19: 0 | J19: =IF($C$4=1,ROUND('Salary Worksheet'!G30*I19,2), ROUND('Salary Worksheet'!G16/12*I19,2)) -> 0 | K19: 0 | L19: =IF($C$4=1,ROUND('Salary Worksheet'!H30*K19,2), ROUND('Salary Worksheet'!H16/12*K19,2)) -> 0 | M19: 23974.33
A20: Subtotal Other Employee Salary | D20: =SUM(D10:D19) -> 79922 | F20: =SUM(F10:F19) -> 30062.46 | H20: =SUM(H10:H19) -> 0 | J20: =SUM(J10:J19) -> 0 | L20: =SUM(L10:L19) -> 0 | M20: =SUM(J20+H20+F20+D20+L20) -> 109984.46
A21: POSTDOCS, GSRs, PART-TIME, TEMPS
A23: PostDoc(s) | C23: 0 | D23: =IF($C$4=1,ROUND('Salary Worksheet'!D28*C23,2), ROUND('Salary Worksheet'!D27/12*C23,0)) -> 0 | E23: 0 | F23: =IF($C$4=1,ROUND('Salary Worksheet'!E28*E23,2), ROUND('Salary Worksheet'!E27/12*E23,0)) -> 0 | G23: 0 | H23: =IF($C$4=1,ROUND('Salary Worksheet'!F28*G23,2), ROUND('Salary Worksheet'!F27/12*G23,0)) -> 0 | I23: 0 | J23: =IF($C$4=1,ROUND('Salary Worksheet'!G28*I23,2), ROUND('Salary Worksheet'!G27/12*I23,0)) -> 0 | K23: 0 | L23: =IF($C$4=1,ROUND('Salary Worksheet'!H28*K23,2), ROUND('Salary Worksheet'!H27/12*K23,0)) -> 0 | M23: =SUM(J23+H23+F23+D23+L23) -> 0
A24: Graduate Student(s) (GSRs) | C24: 0 | D24: =IF($C$4=1,ROUND('Salary Worksheet'!D30*C24,2), ROUND('Salary Worksheet'!D29/12*C24,0)) -> 0 | E24: 0 | F24: =IF($C$4=1,ROUND('Salary Worksheet'!E30*E24,2), ROUND('Salary Worksheet'!E29/12*E24,0)) -> 0 | G24: 0 | H24: =IF($C$4=1,ROUND('Salary Worksheet'!F30*G24,2), ROUND('Salary Worksheet'!F29/12*G24,0)) -> 0 | I24: 0 | J24: =IF($C$4=1,ROUND('Salary Worksheet'!G30*I24,2), ROUND('Salary Worksheet'!G29/12*I24,0)) -> 0 | K24: 0 | L24: =IF($C$4=1,ROUND('Salary Worksheet'!H30*K24,2), ROUND('Salary Worksheet'!H29/12*K24,0)) -> 0 | M24: 0
A25: NA PT (30-39 hrs) | C25: 0 | D25: =IF($C$4=1,ROUND('Salary Worksheet'!E43*C25,2), ROUND('Salary Worksheet'!E36/12*C25,0)) -> 0 | E25: 0 | F25: =IF($C$4=1,ROUND('Salary Worksheet'!F43*E25,2), ROUND('Salary Worksheet'!F36/12*E25,0)) -> 0 | G25: 0 | H25: =IF($C$4=1,ROUND('Salary Worksheet'!G43*G25,2), ROUND('Salary Worksheet'!G36/12*G25,0)) -> 0 | I25: 0 | J25: =IF($C$4=1,ROUND('Salary Worksheet'!H43*I25,2), ROUND('Salary Worksheet'!H36/12*I25,0)) -> 0 | K25: 0 | L25: =IF($C$4=1,ROUND('Salary Worksheet'!I43*K25,2), ROUND('Salary Worksheet'!I36/12*K25,0)) -> 0 | M25: 0
A26: NA PT (30-39 hrs) | C26: 0 | D26: =IF($C$4=1,ROUND('Salary Worksheet'!E44*C26,2), ROUND('Salary Worksheet'!E37/12*C26,0)) -> 0 | E26: 0 | F26: =IF($C$4=1,ROUND('Salary Worksheet'!F44*E26,2), ROUND('Salary Worksheet'!F37/12*E26,0)) -> 0 | G26: 0 | H26: =IF($C$4=1,ROUND('Salary Worksheet'!G44*G26,2), ROUND('Salary Worksheet'!G37/12*G26,0)) -> 0 | I26: 0 | J26: =IF($C$4=1,ROUND('Salary Worksheet'!H44*I26,2), ROUND('Salary Worksheet'!H37/12*I26,0)) -> 0 | K26: 0 | L26: =IF($C$4=1,ROUND('Salary Worksheet'!I44*K26,2), ROUND('Salary Worksheet'!I37/12*K26,0)) -> 0 | M26: 0
A27: Part-time (<= 29 hrs/wk) 1 | C27: 0 | D27: =IF($C$4=1,ROUND('Salary Worksheet'!E45*C27,2), ROUND('Salary Worksheet'!E38/12*C27,0)) -> 0 | E27: 0 | F27: =IF($C$4=1,ROUND('Salary Worksheet'!F45*E27,2), ROUND('Salary Worksheet'!F38/12*E27,0)) -> 0 | G27: 0 | H27: =IF($C$4=1,ROUND('Salary Worksheet'!G45*G27,2), ROUND('Salary Worksheet'!G38/12*G27,0)) -> 0 | I27: 0 | J27: =IF($C$4=1,ROUND('Salary Worksheet'!H45*I27,2), ROUND('Salary Worksheet'!H38/12*I27,0)) -> 0 | K27: 0 | L27: =IF($C$4=1,ROUND('Salary Worksheet'!I45*K27,2), ROUND('Salary Worksheet'!I38/12*K27,0)) -> 0 | M27: 0
A28: Part-time (<= 29 hrs/wk) 2 | C28: 0 | D28: =IF($C$4=1,ROUND('Salary Worksheet'!E46*C28,2), ROUND('Salary Worksheet'!E39/12*C28,0)) -> 0 | E28: 0 | F28: =IF($C$4=1,ROUND('Salary Worksheet'!F46*E28,2), ROUND('Salary Worksheet'!F39/12*E28,0)) -> 0 | G28: 0 | H28: =IF($C$4=1,ROUND('Salary Worksheet'!G46*G28,2), ROUND('Salary Worksheet'!G39/12*G28,0)) -> 0 | I28: 0 | J28: =IF($C$4=1,ROUND('Salary Worksheet'!H46*I28,2), ROUND('Salary Worksheet'!H39/12*I28,0)) -> 0 | K28: 0 | L28: =IF($C$4=1,ROUND('Salary Worksheet'!I46*K28,2), ROUND('Salary Worksheet'!I39/12*K28,0)) -> 0 | M28: 0
A29: Temporary Employee 1 | C29: 0 | D29: =IF($C$4=1,ROUND('Salary Worksheet'!E47*C29,2), ROUND('Salary Worksheet'!E40/12*C29,0)) -> 0 | E29: 0 | F29: =IF($C$4=1,ROUND('Salary Worksheet'!F47*E29,2), ROUND('Salary Worksheet'!F40/12*E29,0)) -> 0 | G29: 0 | H29: =IF($C$4=1,ROUND('Salary Worksheet'!G47*G29,2), ROUND('Salary Worksheet'!G40/12*G29,0)) -> 0 | I29: 0 | J29: =IF($C$4=1,ROUND('Salary Worksheet'!H47*I29,2), ROUND('Salary Worksheet'!H40/12*I29,0)) -> 0 | K29: 0 | L29: =IF($C$4=1,ROUND('Salary Worksheet'!I47*K29,2), ROUND('Salary Worksheet'!I40/12*K29,0)) -> 0 | M29: 0
A30: Temporary Employee 2 | C30: 0 | D30: =IF($C$4=1,ROUND('Salary Worksheet'!E48*C30,2), ROUND('Salary Worksheet'!E41/12*C30,0)) -> 0 | E30: 0 | F30: =IF($C$4=1,ROUND('Salary Worksheet'!F48*E30,2), ROUND('Salary Worksheet'!F41/12*E30,0)) -> 0 | G30: 0 | H30: =IF($C$4=1,ROUND('Salary Worksheet'!G48*G30,2), ROUND('Salary Worksheet'!G41/12*G30,0)) -> 0 | I30: 0 | J30: =IF($C$4=1,ROUND('Salary Worksheet'!H48*I30,2), ROUND('Salary Worksheet'!H41/12*I30,0)) -> 0 | K30: 0 | L30: =IF($C$4=1,ROUND('Salary Worksheet'!I48*K30,2), ROUND('Salary Worksheet'!I41/12*K30,0)) -> 0 | M30: 0
A31: Subtotal Other Personnel Salary | D31: =SUM(D20:D29) -> 79922 | F31: =SUM(F20:F29) -> 30062.46 | H31: =SUM(H20:H29) -> 0 | J31: =SUM(J20:J29) -> 0 | L31: =SUM(L20:L29) -> 0 | M31: 109984.46
A32: Total Salary & Wages | D32: =SUM(D31+D9) -> 79922 | F32: =SUM(F31+F9) -> 30062.46 | H32: =SUM(H31+H9) -> 0 | J32: =SUM(J31+J9) -> 0 | L32: =SUM(L31+L9) -> 0 | M32: 109984.46
A33: FRINGE BENEFITS
A34: Full-time (Regular) | B34: 0.5715 | D34: =((D9+D20)*$B$34) -> 45675.423 | F34: =((F9+F20)*$B$34) -> 17180.69589 | H34: =((H9+H20)*$B$34) -> 0 | J34: =((J9+J20)*$B$34) -> 0 | L34: =((L9+L20)*$B$34) -> 0 | M34: =SUM(J34+H34+F34+D34+L34) -> 62856.11889
A35: PostDoc | B35: 0.4123 | D35: =D23*$B$35 -> 0 | F35: =F23*$B$35 -> 0 | H35: =H23*$B$35 -> 0 | J35: =J23*$B$35 -> 0 | L35: =L23*$B$35 -> 0 | M35: 0
A36: PT (30-39 hrs) | B36: 0.5715 | D36: =(SUM(D25:D26))*$B$36 -> 0 | F36: =(SUM(F25:F26)*$B$36) -> 0 | H36: =(SUM(H25:H26)*$B$36) -> 0 | J36: =(SUM(J25:J26)*$B$36) -> 0 | L36: =(SUM(L25:L26)*$B$36) -> 0 | M36: 0
A37: GSRs + PT (20-29 hrs) | B37: 0.3062 | D37: =(SUM(D24,D27,D28))*$B$37 -> 0 | F37: =(SUM(F24,F27,F28))*$B$37 -> 0 | H37: =(SUM(H24,H27,H28))*$B$37 -> 0 | J37: =(SUM(J24,J27,J28))*$B$37 -> 0 | L37: =(SUM(L24,L27,L28))*$B$37 -> 0 | M37: 0
A38: Temp | B38: 0.1111 | D38: =(D29+D30)*$B$38 -> 0 | F38: =(F29+F30)*$B$38 -> 0 | H38: =(H29+H30)*$B$38 -> 0 | J38: =(J29+J30)*$B$38 -> 0 | L38: =(L29+L30)*$B$38 -> 0 | M38: 0
A39: Total Fringe Benefits | D39: =SUM(D34:D38) -> 45675.423 | F39: =SUM(F34:F38) -> 17180.69589 | H39: =SUM(H34:H38) -> 0 | J39: =SUM(J34:J38) -> 0 | L39: =SUM(L34:L38) -> 0 | M39: 62856.11889
A40: Total Salary & Benefits | D40: =SUM(D39,D32) -> 125597.423 | F40: =SUM(F39,F32) -> 47243.15589 | H40: =SUM(H39,H32) -> 0 | J40: =SUM(J39,J32) -> 0 | L40: =SUM(L39,L32) -> 0 | M40: 172840.5789
A41: CAPITAL EQUIPMENT (items >$5K)
A42: ODI Hybrid Test lead (purchased under award OCE 1514756) | D42: 0 | F42: 0 | M42: =SUM(J42+H42+F42+D42+L42) -> 0
A43: Titanium Billet and end plates (new MVC housing)(purchased under award OCE 1514756) | D43: 0 | M43: =SUM(J43+H43+F43+D43+L43) -> 0
A44: ODI Wet Mate Panel Connectors Refurbish x5 | D44: 45000 | M44: 45000
A45: Data transport, data conv, timing connectors, supplies | D45: 15000 | M45: 15000
M46: 0
M47: 0
M48: 0
M49: 0
M50: 0
M51: 0
A52: Total Equipment | D52: =SUM(D42:D51) -> 60000 | F52: =SUM(F42:F51) -> 0 | H52: =SUM(H42:H51) -> 0 | J52: =SUM(J42:J51) -> 0 | L52: =SUM(L42:L51) -> 0 | M52: =SUM(L52,J52,H52,F52,D52) -> 60000
A53: TRAVEL
A54: Travel - Domestic | D54: 0 | F54: 0 | H54: 0 | J54: 0 | L54: 0 | M54: =SUM(L54,J54,H54,F54,D54) -> 0
A55: Travel - Foreign | M55: =SUM(L55,J55,H55,F55,D55) -> 0
A56: Total Travel | D56: =SUM(D54:D55) -> 0 | F56: =SUM(F54:F55) -> 0 | H56: =SUM(H54:H55) -> 0 | J56: =SUM(J54:J55) -> 0 | L56: =SUM(L54:L55) -> 0 | M56: =SUM(L56,J56,H56,F56,D56) -> 0
A57: PARTICIPANT SUPPORT
A58: Stipends | M58: =SUM(L58,J58,H58,F58,D58) -> 0
A59: Travel | M59: =SUM(L59,J59,H59,F59,D59) -> 0
A60: Subsistence | M60: =SUM(L60,J60,H60,F60,D60) -> 0
A61: Other | M61: =SUM(L61,J61,H61,F61,D61) -> 0
A62: Total Participant Support | D62: =SUM(D58:D61) -> 0 | F62: =SUM(F58:F61) -> 0 | H62: =SUM(H58:H61) -> 0 | J62: =SUM(J58:J61) -> 0 | L62: =SUM(L58:L61) -> 0 | M62: =SUM(L62,J62,H62,F62,D62) -> 0
A63: MATERIALS & SUPPLIES
M64: =SUM(L64,J64,H64,F64,D64) -> 0
M65: =SUM(L65,J65,H65,F65,D65) -> 0
M66: 0
M67: 0
M68: 0
M69: 0
M70: 0
M71: 0
M72: 0
M73: 0
A74: Total Materials & Supplies | D74: =SUM(D64:D73) -> 0 | F74: =SUM(F64:F73) -> 0 | H74: =SUM(H64:H73) -> 0 | J74: =SUM(J64:J73) -> 0 | L74: =SUM(L64:L73) -> 0 | M74: =SUM(L74,J74,H74,F74,D74) -> 0
A75: PUBLICATIONS/DOCUMENTATION
M76: =SUM(L76,J76,H76,F76,D76) -> 0
M77: =SUM(L77,J77,H77,F77,D77) -> 0
A78: Total Publications | D78: =SUM(D76) -> 0 | F78: =SUM(F76) -> 0 | H78: =SUM(H76:H76) -> 0 | J78: =SUM(J76:J76) -> 0 | L78: =SUM(L76:L76) -> 0 | M78: =SUM(L78,J78,H78,F78,D78) -> 0
A79: OUTSIDE SERVICES
D80: 0 | M80: =SUM(L80,J80,H80,F80,D80) -> 0
M81: 0
M82: 0
M83: 0
M84: 0
A85: Total Outside Services | D85: =SUM(D80:D84) -> 0 | F85: =SUM(F80:F84) -> 0 | H85: =SUM(H80:H84) -> 0 | J85: =SUM(J80:J84) -> 0 | L85: =SUM(L80:L84) -> 0 | M85: 0
A86: SUBAWARDS
M87: =SUM(L87,J87,H87,F87,D87) -> 0
M88: =SUM(L88,J88,H88,F88,D88) -> 0
M89: =SUM(L89,J89,H89,F89,D89) -> 0
M90: 0
M91: 0
M92: 0
M93: 0
M94: 0
M95: 0
M96: 0
A97: Total Subawards | D97: =SUM(D87:D96) -> 0 | F97: =SUM(F87:F96) -> 0 | H97: =SUM(H87:H96) -> 0 | J97: =SUM(J87:J96) -> 0 | L97: =SUM(L87:L96) -> 0 | M97: =SUM(L97,J97,H97,F97,D97) -> 0
A98: Subawards subject to OH | D98: ='Subaward Worksheet'!B35 -> 25000 | F98: ='Subaward Worksheet'!C35 -> 0 | H98: ='Subaward Worksheet'!D35 -> 0 | J98: ='Subaward Worksheet'!E35 -> 0 | L98: ='Subaward Worksheet'!F35 -> 0
A99: OH on Subawards | D99: ='Subaward Worksheet'!$B$36 -> 13125 | F99: ='Subaward Worksheet'!$C$36 -> 0 | H99: ='Subaward Worksheet'!$D$36 -> 0 | J99: ='Subaward Worksheet'!$E$36 -> 0 | L99: ='Subaward Worksheet'!$F$36 -> 0 | M99: =SUM(L99,J99,H99,F99,D99) -> 13125
A100: SHIP TIME | B100: Rate | C100: # Days | E100: # Days | G100: # Days | I100: # Days | K100: # Days
C101: 0 | D101: =B101*C101 -> 0 | F101: =29500*E101 -> 0 | H101: =29500*G101 -> 0 | J101: =29500*I101 -> 0 | L101: =29500*K101 -> 0 | M101: =SUM(L101,J101,H101,F101,D101) -> 0
C102: 0 | D102: =B102*C102 -> 0 | F102: =16900*E102 -> 0 | H102: =16900*G102 -> 0 | J102: =16900*I102 -> 0 | L102: =16900*K102 -> 0 | M102: =SUM(L102,J102,H102,F102,D102) -> 0
C103: 0 | D103: =B103*C103 -> 0 | E103: 0 | F103: ='Projected Ship Rates'!D12*E103 -> 0 | G103: 0 | H103: ='Projected Ship Rates'!E12*G103 -> 0 | I103: 0 | J103: ='Projected Ship Rates'!F12*I103 -> 0 | K103: 0 | L103: ='Projected Ship Rates'!G12*K103 -> 0 | M103: =SUM(L103,J103,H103,F103,D103) -> 0
D104: =B104*C104 -> 0 | F104: =B104*E104 -> 0 | H104: =B104*G104 -> 0 | J104: =B104*I104 -> 0 | L104: =B104*K104 -> 0 | M104: =SUM(L104,J104,H104,F104,D104) -> 0
A105: Total Ship Time | D105: =SUM(D103:D104) -> 0 | F105: =SUM(F103:F104) -> 0 | H105: =SUM(H103:H104) -> 0 | J105: =SUM(J103:J104) -> 0 | L105: =SUM(L103:L104) -> 0 | M105: =SUM(L105,J105,H105,F105,D105) -> 0
A106: TUITION/FEES | C106: Qtrs. | E106: Qtrs. | G106: Qtrs. | I106: Qtrs. | K106: Qtrs.
A107: UCSC Grad Student | D107: =(C107*'Salary Worksheet'!D31) -> 0 | F107: =(E107*'Salary Worksheet'!E31) -> 0 | H107: =(G107*'Salary Worksheet'!F31) -> 0 | I107: 0 | J107: =(I107*'Salary Worksheet'!G31) -> 0 | K107: 0 | L107: =(K107*'Salary Worksheet'!H31) -> 0 | M107: =SUM(L107,J107,H107,F107,D107) -> 0
A108: UCSC Grad Student - Nonres. | C108: 0 | D108: =(C108*'Salary Worksheet'!D32) -> 0 | E108: 0 | F108: =(E108*'Salary Worksheet'!E32) -> 0 | G108: 0 | H108: =(G108*'Salary Worksheet'!F32) -> 0 | I108: 0 | J108: =(I108*'Salary Worksheet'!G32) -> 0 | K108: 0 | L108: =(K108*'Salary Worksheet'!H32) -> 0 | M108: =SUM(L108,J108,H108,F108,D108) -> 0
A109: Total Tuition/Fees | D109: =SUM(D107:D108) -> 0 | F109: =SUM(F107:F108) -> 0 | H109: =SUM(H107:H108) -> 0 | J109: =SUM(J107:J108) -> 0 | L109: =SUM(L107:L108) -> 0 | M109: =SUM(L109,J109,H109,F109,D109) -> 0
A110: SHIPPING
A111: UW to/from | D111: 5000 | M111: =SUM(L111,J111,H111,F111,D111) -> 5000
A112: Total Shipping | D112: =SUM(D111) -> 5000 | F112: =SUM(F111) -> 0 | H112: =SUM(H111:H111) -> 0 | J112: =SUM(J111:J111) -> 0 | L112: =SUM(L111:L111) -> 0 | M112: 5000
A114: TOTAL DIRECT COSTS | D114: =SUM(D112,D109,D105,D97,D85,D78,D74,D62,D56,D52,D40) -> 190597.423 | F114: =SUM(F112,F109,F105,F97,F85,F78,F74,F62,F56,F52,F40) -> 47243.15589 | H114: =SUM(H112,H109,H105,H97,H85,H78,H74,H62,H56,H52,H40) -> 0 | J114: =SUM(J112,J109,J105,J97,J85,J78,J74,J62,J56,J52,J40) -> 0 | L114: =SUM(L112,L109,L105,L97,L85,L78,L74,L62,L56,L52,L40) -> 0 | M114: 237840.5789
A115: MODIFIED TOTAL DIRECT COST BASE | D115: =D114-D102-D101-D97+D98-D62-D52-D105 -> 155597.423 | F115: =F114-F102-F101-F97+F98-F62-F52 -> 47243.15589 | H115: =H114-H102-H101-H97+H98-H62-H52 -> 0 | J115: =J114-J102-J101-J97+J98-J62-J52 -> 0 | L115: =L114-L102-L101-L97+L98-L62-L52 -> 0 | M115: 202840.5789
A116: TOTAL INDIRECT COSTS | C116: 0 | D116: =ROUND(D115*$C$116,0) -> 0 | F116: =ROUND(F115*$C$116,0) -> 0 | H116: =ROUND(H115*$C$116,0) -> 0 | J116: 0 | L116: 0 | M116: 0
A117: TOTAL DIRECT & INDIRECT COSTS | D117: =+D116+D114 -> 190597.423 | F117: =+F116+F114 -> 47243.15589 | H117: =+H116+H114 -> 0 | J117: =+J116+J114 -> 0 | L117: =+L116+L114 -> 0 | M117: 237840.5789

Sheet MARS Budget
A1: MARS Renewal 2021-2026 | L1: Updated: | M1: =TODAY() -> 2021-06-01
C2: 03/01/21-02/28/22 | E2: 03/01/22-02/28/23 | G2: 03/01/23-02/28/24 | I2: 03/01/24-02/28/25 | K2: 03/01/25-02/28/26
A3: TOTAL | C3: =D117 -> 1067131.414 | E3: =F117 -> 560200.685 | G3: =H117 -> 507930.43 | I3: =J117 -> 906971.6372 | K3: =L117 -> 772369.6266 | M3: =M117 -> 3814603.793
A4: SALARY/WAGES | C4: 2 | D4: Y1 | E4: =IF($C$4=1, "HOURS", "MONTHS") -> MONTHS | F4: Y2 | G4: =IF($C$4=1, "HOURS", "MONTHS") -> MONTHS | H4: Y3 | I4: =IF($C$4=1, "HOURS", "MONTHS") -> MONTHS | J4: Y4 | K4: =IF($C$4=1, "HOURS", "MONTHS") -> MONTHS | L4: Y5 | M4: Total
A6: ='Salary Worksheet'!B4 -> Mike Kelly | C6: 0 | D6: =IF($C$4=1,ROUND('Salary Worksheet'!D18*C6,2), ROUND('Salary Worksheet'!D4/12*C6,2)) -> 0 | E6: 0 | F6: =IF($C$4=1,ROUND('Salary Worksheet'!E18*E6,2), ROUND('Salary Worksheet'!E4/12*E6,2)) -> 0 | G6: 0 | H6: =IF($C$4=1,ROUND('Salary Worksheet'!F18*G6,2), ROUND('Salary Worksheet'!F4/12*G6,0)) -> 0 | I6: 0 | J6: =IF($C$4=1,ROUND('Salary Worksheet'!G18*I6,2), ROUND('Salary Worksheet'!G4/12*I6,0)) -> 0 | K6: 0 | L6: =IF($C$4=1,ROUND('Salary Worksheet'!H18*K6,2), ROUND('Salary Worksheet'!H4/12*K6,0)) -> 0 | M6: =SUM(L6,J6,H6,F6,D6) -> 0
C7: 0 | D7: =IF($C$4=1,ROUND('Salary Worksheet'!D19*C7,2), ROUND('Salary Worksheet'!D5/12*C7,2)) -> 0 | E7: 0 | F7: =IF($C$4=1,ROUND('Salary Worksheet'!E19*E7,2), ROUND('Salary Worksheet'!E5/12*E7,2)) -> 0 | G7: 0 | H7: =IF($C$4=1,ROUND('Salary Worksheet'!F19*G7,2), ROUND('Salary Worksheet'!F5/12*G7,0)) -> 0 | I7: 0 | J7: =IF($C$4=1,ROUND('Salary Worksheet'!G19*I7,2), ROUND('Salary Worksheet'!G5/12*I7,0)) -> 0 | K7: 0 | L7: =IF($C$4=1,ROUND('Salary Worksheet'!H19*K7,2), ROUND('Salary Worksheet'!H5/12*K7,0)) -> 0 | M7: =SUM(J7+H7+F7+D7+L7) -> 0
C8: 0 | D8: =IF($C$4=1,ROUND('Salary Worksheet'!D20*C8,2), ROUND('Salary Worksheet'!D6/12*C8,2)) -> 0 | E8: 0 | F8: =IF($C$4=1,ROUND('Salary Worksheet'!E20*E8,2), ROUND('Salary Worksheet'!E6/12*E8,2)) -> 0 | G8: 0 | H8: =IF($C$4=1,ROUND('Salary Worksheet'!F20*G8,2), ROUND('Salary Worksheet'!F6/12*G8,0)) -> 0 | I8: 0 | J8: =IF($C$4=1,ROUND('Salary Worksheet'!G20*I8,2), ROUND('Salary Worksheet'!G6/12*I8,0)) -> 0 | K8: 0 | L8: =IF($C$4=1,ROUND('Salary Worksheet'!H20*K8,2), ROUND('Salary Worksheet'!H6/12*K8,0)) -> 0 | M8: =SUM(J8+H8+F8+D8+L8) -> 0
A9: Subtotal Sr. Personnel Salary | D9: =SUM(D6:D8) -> 0 | F9: =SUM(F6:F8) -> 0 | H9: =SUM(H6:H8) -> 0 | J9: =SUM(J6:J8) -> 0 | L9: =SUM(L6:L8) -> 0 | M9: =SUM(J9+H9+F9+D9+L9) -> 0
A10: ='Salary Worksheet'!B7 -> Craig Dawe | C10: 5 | D10: =IF($C$4=1,ROUND('Salary Worksheet'!D21*C10,2), ROUND('Salary Worksheet'!D7/12*C10,0)) -> 79488 | E10: 0 | F10: =IF($C$4=1,ROUND('Salary Worksheet'!E21*E10,2), ROUND('Salary Worksheet'!E7/12*E10,2)) -> 0 | G10: 0 | H10: =IF($C$4=1,ROUND('Salary Worksheet'!F21*G10,2), ROUND('Salary Worksheet'!F7/12*G10,2)) -> 0 | I10: 0 | J10: =IF($C$4=1,ROUND('Salary Worksheet'!G21*I10,2), ROUND('Salary Worksheet'!G7/12*I10,2)) -> 0 | K10: 0 | L10: =IF($C$4=1,ROUND('Salary Worksheet'!H21*K10,2), ROUND('Salary Worksheet'!H7/12*K10,2)) -> 0 | M10: =SUM(L10+J10+H10+F10+D10) -> 79488
A11: ='Salary Worksheet'!B8 -> MARS Operations Manager | C11: 0 | D11: =IF($C$4=1,ROUND('Salary Worksheet'!D22*C11,2), ROUND('Salary Worksheet'!D8/12*C11,0)) -> 0 | E11: 4 | F11: =IF($C$4=1,ROUND('Salary Worksheet'!E22*E11,2), ROUND('Salary Worksheet'!E8/12*E11,2)) -> 63590 | G11: 4 | H11: =IF($C$4=1,ROUND('Salary Worksheet'!F22*G11,2), ROUND('Salary Worksheet'!F8/12*G11,2)) -> 65497.67 | I11: 4 | J11: =IF($C$4=1,ROUND('Salary Worksheet'!G22*I11,2), ROUND('Salary Worksheet'!G8/12*I11,2)) -> 67462.67 | K11: 4 | L11: =IF($C$4=1,ROUND('Salary Worksheet'!H22*K11,2), ROUND('Salary Worksheet'!H8/12*K11,2)) -> 69486.67 | M11: 266037.01
A12: ='Salary Worksheet'!B9 -> Dave French | C12: 1 | D12: =IF($C$4=1,ROUND('Salary Worksheet'!D23*C12,2), ROUND('Salary Worksheet'!D9/12*C12,0)) -> 9487 | E12: 0.67 | F12: =IF($C$4=1,ROUND('Salary Worksheet'!E23*E12,2), ROUND('Salary Worksheet'!E9/12*E12,2)) -> 6547.13 | G12: 2 | H12: =IF($C$4=1,ROUND('Salary Worksheet'!F23*G12,2), ROUND('Salary Worksheet'!F9/12*G12,2)) -> 20130 | I12: 2 | J12: =IF($C$4=1,ROUND('Salary Worksheet'!G23*I12,2), ROUND('Salary Worksheet'!G9/12*I12,2)) -> 20733.83 | K12: 2 | L12: =IF($C$4=1,ROUND('Salary Worksheet'!H23*K12,2), ROUND('Salary Worksheet'!H9/12*K12,2)) -> 21355.83 | M12: 78253.79
A13: ='Salary Worksheet'!B10 -> Paul McGill | C13: 0.25 | D13: =IF($C$4=1,ROUND('Salary Worksheet'!D24*C13,2), ROUND('Salary Worksheet'!D10/12*C13,0)) -> 4073 | E13: 1 | F13: =IF($C$4=1,ROUND('Salary Worksheet'!E24*E13,2), ROUND('Salary Worksheet'!E10/12*E13,2)) -> 16779.92 | G13: 1 | H13: =IF($C$4=1,ROUND('Salary Worksheet'!F24*G13,2), ROUND('Salary Worksheet'!F10/12*G13,2)) -> 17283.33 | I13: 1 | J13: =IF($C$4=1,ROUND('Salary Worksheet'!G24*I13,2), ROUND('Salary Worksheet'!G10/12*I13,2)) -> 17801.83 | K13: 1 | L13: =IF($C$4=1,ROUND('Salary Worksheet'!H24*K13,2), ROUND('Salary Worksheet'!H10/12*K13,2)) -> 18335.92 | M13: 74274
A14: ='Salary Worksheet'!B11 -> Ed Mellinger | C14: 0.25 | D14: =IF($C$4=1,ROUND('Salary Worksheet'!D25*C14,2), ROUND('Salary Worksheet'!D11/12*C14,0)) -> 3798 | E14: 0 | F14: =IF($C$4=1,ROUND('Salary Worksheet'!E25*E14,2), ROUND('Salary Worksheet'!E11/12*E14,2)) -> 0 | G14: 0 | H14: =IF($C$4=1,ROUND('Salary Worksheet'!F25*G14,2), ROUND('Salary Worksheet'!F11/12*G14,2)) -> 0 | I14: 0 | J14: =IF($C$4=1,ROUND('Salary Worksheet'!G25*I14,2), ROUND('Salary Worksheet'!G11/12*I14,2)) -> 0 | K14: 0 | L14: =IF($C$4=1,ROUND('Salary Worksheet'!H25*K14,2), ROUND('Salary Worksheet'!H11/12*K14,2)) -> 0 | M14: 3798
A15: ='Salary Worksheet'!B12 -> Rich Schramm | C15: 0.25 | D15: =IF($C$4=1,ROUND('Salary Worksheet'!D26*C15,2), ROUND('Salary Worksheet'!D12/12*C15,0)) -> 3598 | E15: 0 | F15: =IF($C$4=1,ROUND('Salary Worksheet'!E26*E15,2), ROUND('Salary Worksheet'!E12/12*E15,2)) -> 0 | G15: 0 | H15: =IF($C$4=1,ROUND('Salary Worksheet'!F26*G15,2), ROUND('Salary Worksheet'!F12/12*G15,2)) -> 0 | I15: 0 | J15: =IF($C$4=1,ROUND('Salary Worksheet'!G26*I15,2), ROUND('Salary Worksheet'!G12/12*I15,2)) -> 0 | K15: 0 | L15: =IF($C$4=1,ROUND('Salary Worksheet'!H26*K15,2), ROUND('Salary Worksheet'!H12/12*K15,2)) -> 0 | M15: 3598
A16: ='Salary Worksheet'!B13 -> Mike Risi | C16: 0.25 | D16: =IF($C$4=1,ROUND('Salary Worksheet'!D27*C16,2), ROUND('Salary Worksheet'!D13/12*C16,0)) -> 3732 | E16: 0 | F16: =IF($C$4=1,ROUND('Salary Worksheet'!E27*E16,2), ROUND('Salary Worksheet'!E13/12*E16,2)) -> 0 | G16: 0 | H16: =IF($C$4=1,ROUND('Salary Worksheet'!F27*G16,2), ROUND('Salary Worksheet'!F13/12*G16,2)) -> 0 | I16: 0 | J16: =IF($C$4=1,ROUND('Salary Worksheet'!G27*I16,2), ROUND('Salary Worksheet'!G13/12*I16,2)) -> 0 | K16: 0 | L16: =IF($C$4=1,ROUND('Salary Worksheet'!H27*K16,2), ROUND('Salary Worksheet'!H13/12*K16,2)) -> 0 | M16: 3732
A17: ='Salary Worksheet'!B14 -> Jon Erickson | C17: 0.25 | D17: =IF($C$4=1,ROUND('Salary Worksheet'!D28*C17,2), ROUND('Salary Worksheet'!D14/12*C17,0)) -> 3511 | E17: 0 | F17: =IF($C$4=1,ROUND('Salary Worksheet'!E28*E17,2), ROUND('Salary Worksheet'!E14/12*E17,2)) -> 0 | G17: 0 | H17: =IF($C$4=1,ROUND('Salary Worksheet'!F28*G17,2), ROUND('Salary Worksheet'!F14/12*G17,2)) -> 0 | I17: 0 | J17: =IF($C$4=1,ROUND('Salary Worksheet'!G28*I17,2), ROUND('Salary Worksheet'!G14/12*I17,2)) -> 0 | K17: 0 | L17: =IF($C$4=1,ROUND('Salary Worksheet'!H28*K17,2), ROUND('Salary Worksheet'!H14/12*K17,2)) -> 0 | M17: 3511
A18: ='Salary Worksheet'!B15 -> Ray Thompson | C18: 0.25 | D18: =IF($C$4=1,ROUND('Salary Worksheet'!D29*C18,2), ROUND('Salary Worksheet'!D15/12*C18,0)) -> 2525 | E18: 0 | F18: =IF($C$4=1,ROUND('Salary Worksheet'!E29*E18,2), ROUND('Salary Worksheet'!E15/12*E18,2)) -> 0 | G18: 0 | H18: =IF($C$4=1,ROUND('Salary Worksheet'!F29*G18,2), ROUND('Salary Worksheet'!F15/12*G18,2)) -> 0 | I18: 0 | J18: =IF($C$4=1,ROUND('Salary Worksheet'!G29*I18,2), ROUND('Salary Worksheet'!G15/12*I18,2)) -> 0 | K18: 0 | L18: =IF($C$4=1,ROUND('Salary Worksheet'!H29*K18,2), ROUND('Salary Worksheet'!H15/12*K18,2)) -> 0 | M18: 2525
A19: ='Salary Worksheet'!B16 -> Duane Thompson | C19: 2.33 | D19: =IF($C$4=1,ROUND('Salary Worksheet'!D30*C19,2), ROUND('Salary Worksheet'!D16/12*C19,0)) -> 23669 | E19: 3 | F19: =IF($C$4=1,ROUND('Salary Worksheet'!E30*E19,2), ROUND('Salary Worksheet'!E16/12*E19,2)) -> 31390 | G19: 4 | H19: =IF($C$4=1,ROUND('Salary Worksheet'!F30*G19,2), ROUND('Salary Worksheet'!F16/12*G19,2)) -> 43109 | I19: 4 | J19: =IF($C$4=1,ROUND('Salary Worksheet'!G30*I19,2), ROUND('Salary Worksheet'!G16/12*I19,2)) -> 44402.33 | K19: 4 | L19: =IF($C$4=1,ROUND('Salary Worksheet'!H30*K19,2), ROUND('Salary Worksheet'!H16/12*K19,2)) -> 45734.33 | M19: 188304.66
A20: Subtotal Other Employee Salary | D20: =SUM(D10:D19) -> 133881 | F20: =SUM(F10:F19) -> 118307.05 | H20: =SUM(H10:H19) -> 146020 | J20: =SUM(J10:J19) -> 150400.66 | L20: =SUM(L10:L19) -> 154912.75 | M20: =SUM(J20+H20+F20+D20+L20) -> 703521.46
A21: POSTDOCS, GSRs, PART-TIME, TEMPS
A23: PostDoc(s) | C23: 0 | D23: =IF($C$4=1,ROUND('Salary Worksheet'!D28*C23,2), ROUND('Salary Worksheet'!D27/12*C23,0)) -> 0 | E23: 0 | F23: =IF($C$4=1,ROUND('Salary Worksheet'!E28*E23,2), ROUND('Salary Worksheet'!E27/12*E23,0)) -> 0 | G23: 0 | H23: =IF($C$4=1,ROUND('Salary Worksheet'!F28*G23,2), ROUND('Salary Worksheet'!F27/12*G23,0)) -> 0 | I23: 0 | J23: =IF($C$4=1,ROUND('Salary Worksheet'!G28*I23,2), ROUND('Salary Worksheet'!G27/12*I23,0)) -> 0 | K23: 0 | L23: =IF($C$4=1,ROUND('Salary Worksheet'!H28*K23,2), ROUND('Salary Worksheet'!H27/12*K23,0)) -> 0 | M23: =SUM(J23+H23+F23+D23+L23) -> 0
A24: Graduate Student(s) (GSRs) | C24: 0 | D24: =IF($C$4=1,ROUND('Salary Worksheet'!D30*C24,2), ROUND('Salary Worksheet'!D29/12*C24,0)) -> 0 | E24: 0 | F24: =IF($C$4=1,ROUND('Salary Worksheet'!E30*E24,2), ROUND('Salary Worksheet'!E29/12*E24,0)) -> 0 | G24: 0 | H24: =IF($C$4=1,ROUND('Salary Worksheet'!F30*G24,2), ROUND('Salary Worksheet'!F29/12*G24,0)) -> 0 | I24: 0 | J24: =IF($C$4=1,ROUND('Salary Worksheet'!G30*I24,2), ROUND('Salary Worksheet'!G29/12*I24,0)) -> 0 | K24: 0 | L24: =IF($C$4=1,ROUND('Salary Worksheet'!H30*K24,2), ROUND('Salary Worksheet'!H29/12*K24,0)) -> 0 | M24: 0
A25: NA PT (30-39 hrs) | C25: 0 | D25: =IF($C$4=1,ROUND('Salary Worksheet'!E43*C25,2), ROUND('Salary Worksheet'!E36/12*C25,0)) -> 0 | E25: 0 | F25: =IF($C$4=1,ROUND('Salary Worksheet'!F43*E25,2), ROUND('Salary Worksheet'!F36/12*E25,0)) -> 0 | G25: 0 | H25: =IF($C$4=1,ROUND('Salary Worksheet'!G43*G25,2), ROUND('Salary Worksheet'!G36/12*G25,0)) -> 0 | I25: 0 | J25: =IF($C$4=1,ROUND('Salary Worksheet'!H43*I25,2), ROUND('Salary Worksheet'!H36/12*I25,0)) -> 0 | K25: 0 | L25: =IF($C$4=1,ROUND('Salary Worksheet'!I43*K25,2), ROUND('Salary Worksheet'!I36/12*K25,0)) -> 0 | M25: 0
A26: NA PT (30-39 hrs) | C26: 0 | D26: =IF($C$4=1,ROUND('Salary Worksheet'!E44*C26,2), ROUND('Salary Worksheet'!E37/12*C26,0)) -> 0 | E26: 0 | F26: =IF($C$4=1,ROUND('Salary Worksheet'!F44*E26,2), ROUND('Salary Worksheet'!F37/12*E26,0)) -> 0 | G26: 0 | H26: =IF($C$4=1,ROUND('Salary Worksheet'!G44*G26,2), ROUND('Salary Worksheet'!G37/12*G26,0)) -> 0 | I26: 0 | J26: =IF($C$4=1,ROUND('Salary Worksheet'!H44*I26,2), ROUND('Salary Worksheet'!H37/12*I26,0)) -> 0 | K26: 0 | L26: =IF($C$4=1,ROUND('Salary Worksheet'!I44*K26,2), ROUND('Salary Worksheet'!I37/12*K26,0)) -> 0 | M26: =SUM(J26+H26+F26+D26+L26) -> 0
A27: Part-time (<= 29 hrs/wk) 1 | C27: 0 | D27: =IF($C$4=1,ROUND('Salary Worksheet'!E45*C27,2), ROUND('Salary Worksheet'!E38/12*C27,0)) -> 0 | E27: 0 | F27: =IF($C$4=1,ROUND('Salary Worksheet'!F45*E27,2), ROUND('Salary Worksheet'!F38/12*E27,0)) -> 0 | G27: 0 | H27: =IF($C$4=1,ROUND('Salary Worksheet'!G45*G27,2), ROUND('Salary Worksheet'!G38/12*G27,0)) -> 0 | I27: 0 | J27: =IF($C$4=1,ROUND('Salary Worksheet'!H45*I27,2), ROUND('Salary Worksheet'!H38/12*I27,0)) -> 0 | K27: 0 | L27: =IF($C$4=1,ROUND('Salary Worksheet'!I45*K27,2), ROUND('Salary Worksheet'!I38/12*K27,0)) -> 0 | M27: 0
A28: Part-time (<= 29 hrs/wk) 2 | C28: 0 | D28: =IF($C$4=1,ROUND('Salary Worksheet'!E46*C28,2), ROUND('Salary Worksheet'!E39/12*C28,0)) -> 0 | E28: 0 | F28: =IF($C$4=1,ROUND('Salary Worksheet'!F46*E28,2), ROUND('Salary Worksheet'!F39/12*E28,0)) -> 0 | G28: 0 | H28: =IF($C$4=1,ROUND('Salary Worksheet'!G46*G28,2), ROUND('Salary Worksheet'!G39/12*G28,0)) -> 0 | I28: 0 | J28: =IF($C$4=1,ROUND('Salary Worksheet'!H46*I28,2), ROUND('Salary Worksheet'!H39/12*I28,0)) -> 0 | K28: 0 | L28: =IF($C$4=1,ROUND('Salary Worksheet'!I46*K28,2), ROUND('Salary Worksheet'!I39/12*K28,0)) -> 0 | M28: =SUM(J28+H28+F28+D28+L28) -> 0
A29: Temporary Employee 1 | C29: 0 | D29: =IF($C$4=1,ROUND('Salary Worksheet'!E47*C29,2), ROUND('Salary Worksheet'!E40/12*C29,0)) -> 0 | E29: 0 | F29: =IF($C$4=1,ROUND('Salary Worksheet'!F47*E29,2), ROUND('Salary Worksheet'!F40/12*E29,0)) -> 0 | G29: 0 | H29: =IF($C$4=1,ROUND('Salary Worksheet'!G47*G29,2), ROUND('Salary Worksheet'!G40/12*G29,0)) -> 0 | I29: 0 | J29: =IF($C$4=1,ROUND('Salary Worksheet'!H47*I29,2), ROUND('Salary Worksheet'!H40/12*I29,0)) -> 0 | K29: 0 | L29: =IF($C$4=1,ROUND('Salary Worksheet'!I47*K29,2), ROUND('Salary Worksheet'!I40/12*K29,0)) -> 0 | M29: 0
A30: Temporary Employee 2 | C30: 0 | D30: =IF($C$4=1,ROUND('Salary Worksheet'!E48*C30,2), ROUND('Salary Worksheet'!E41/12*C30,0)) -> 0 | E30: 0 | F30: =IF($C$4=1,ROUND('Salary Worksheet'!F48*E30,2), ROUND('Salary Worksheet'!F41/12*E30,0)) -> 0 | G30: 0 | H30: =IF($C$4=1,ROUND('Salary Worksheet'!G48*G30,2), ROUND('Salary Worksheet'!G41/12*G30,0)) -> 0 | I30: 0 | J30: =IF($C$4=1,ROUND('Salary Worksheet'!H48*I30,2), ROUND('Salary Worksheet'!H41/12*I30,0)) -> 0 | K30: 0 | L30: =IF($C$4=1,ROUND('Salary Worksheet'!I48*K30,2), ROUND('Salary Worksheet'!I41/12*K30,0)) -> 0 | M30: =SUM(J30+H30+F30+D30+L30) -> 0
A31: Subtotal Other Personnel Salary | D31: =SUM(D20:D29) -> 133881 | F31: =SUM(F20:F29) -> 118307.05 | H31: =SUM(H20:H29) -> 146020 | J31: =SUM(J20:J29) -> 150400.66 | L31: =SUM(L20:L29) -> 154912.75 | M31: 703521.46
A32: Total Salary & Wages | D32: =SUM(D31+D9) -> 133881 | F32: =SUM(F31+F9) -> 118307.05 | H32: =SUM(H31+H9) -> 146020 | J32: =SUM(J31+J9) -> 150400.66 | L32: =SUM(L31+L9) -> 154912.75 | M32: 703521.46
A33: FRINGE BENEFITS
A34: Full-time (Regular) | B34: 0.5715 | D34: =((D9+D20)*$B$34) -> 76512.9915 | F34: =((F9+F20)*$B$34) -> 67612.47907 | H34: =((H9+H20)*$B$34) -> 83450.43 | J34: =((J9+J20)*$B$34) -> 85953.97719 | L34: =((L9+L20)*$B$34) -> 88532.63662 | M34: =SUM(J34+H34+F34+D34+L34) -> 402062.5144
A35: PostDoc | B35: 0.4123 | D35: =D23*$B$35 -> 0 | F35: =F23*$B$35 -> 0 | H35: =H23*$B$35 -> 0 | J35: =J23*$B$35 -> 0 | L35: =L23*$B$35 -> 0 | M35: 0
A36: PT (30-39 hrs) | B36: 0.5715 | D36: =(SUM(D25:D26))*$B$36 -> 0 | F36: =(SUM(F25:F26)*$B$36) -> 0 | H36: =(SUM(H25:H26)*$B$36) -> 0 | J36: =(SUM(J25:J26)*$B$36) -> 0 | L36: =(SUM(L25:L26)*$B$36) -> 0 | M36: 0
A37: GSRs + PT (20-29 hrs) | B37: 0.3062 | D37: =(SUM(D24,D27,D28))*$B$37 -> 0 | F37: =(SUM(F24,F27,F28))*$B$37 -> 0 | H37: =(SUM(H24,H27,H28))*$B$37 -> 0 | J37: =(SUM(J24,J27,J28))*$B$37 -> 0 | L37: =(SUM(L24,L27,L28))*$B$37 -> 0 | M37: 0
A38: Temp | B38: 0.1111 | D38: =(D29+D30)*$B$38 -> 0 | F38: =(F29+F30)*$B$38 -> 0 | H38: =(H29+H30)*$B$38 -> 0 | J38: =(J29+J30)*$B$38 -> 0 | L38: =(L29+L30)*$B$38 -> 0 | M38: 0
A39: Total Fringe Benefits | D39: =SUM(D34:D38) -> 76512.9915 | F39: =SUM(F34:F38) -> 67612.47907 | H39: =SUM(H34:H38) -> 83450.43 | J39: =SUM(J34:J38) -> 85953.97719 | L39: =SUM(L34:L38) -> 88532.63662 | M39: 402062.5144
A40: Total Salary & Benefits | D40: =SUM(D39,D32) -> 210393.9915 | F40: =SUM(F39,F32) -> 185919.5291 | H40: =SUM(H39,H32) -> 229470.43 | J40: =SUM(J39,J32) -> 236354.6372 | L40: =SUM(L39,L32) -> 243445.3866 | M40: 1105583.974
A41: CAPITAL EQUIPMENT (items >$5K)
A42: Computer Hardware | D42: 7500 | F42: 7500 | M42: =SUM(J42+H42+F42+D42+L42) -> 15000
A43: CIP: MARS Node Upgrade | D43: ='CIP MARS Node Upgrade'!D117 -> 620597.423 | F43: ='CIP MARS Node Upgrade'!F117 -> 47243.15589 | M43: =SUM(J43+H43+F43+D43+L43) -> 667840.5789
M44: 0
M45: 0
M46: 0
M47: 0
M48: 0
M49: 0
M50: 0
M51: 0
A52: Total Equipment | D52: =SUM(D42:D51) -> 628097.423 | F52: =SUM(F42:F51) -> 54743.15589 | H52: =SUM(H42:H51) -> 0 | J52: =SUM(J42:J51) -> 0 | L52: =SUM(L42:L51) -> 0 | M52: =SUM(L52,J52,H52,F52,D52) -> 682840.5789
A53: TRAVEL
A54: Travel - Domestic | D54: 1000 | F54: 1000 | H54: 1000 | J54: 1000 | L54: 1000 | M54: =SUM(L54,J54,H54,F54,D54) -> 5000
A55: Travel - Foreign | M55: =SUM(L55,J55,H55,F55,D55) -> 0
A56: Total Travel | D56: =SUM(D54:D55) -> 1000 | F56: =SUM(F54:F55) -> 1000 | H56: =SUM(H54:H55) -> 1000 | J56: =SUM(J54:J55) -> 1000 | L56: =SUM(L54:L55) -> 1000 | M56: =SUM(L56,J56,H56,F56,D56) -> 5000
A57: PARTICIPANT SUPPORT
A58: Stipends | M58: =SUM(L58,J58,H58,F58,D58) -> 0
A59: Travel | M59: =SUM(L59,J59,H59,F59,D59) -> 0
A60: Subsistence | M60: =SUM(L60,J60,H60,F60,D60) -> 0
A61: Other | M61: =SUM(L61,J61,H61,F61,D61) -> 0
A62: Total Participant Support | D62: =SUM(D58:D61) -> 0 | F62: =SUM(F58:F61) -> 0 | H62: =SUM(H58:H61) -> 0 | J62: =SUM(J58:J61) -> 0 | L62: =SUM(L58:L61) -> 0 | M62: =SUM(L62,J62,H62,F62,D62) -> 0
A63: MATERIALS & SUPPLIES
A64: Supplies computer hardware | D64: 750 | F64: 750 | H64: 750 | J64: 750 | L64: 750 | M64: =SUM(L64,J64,H64,F64,D64) -> 3750
A65: Computer software | D65: 200 | F65: 200 | H65: 200 | J65: 200 | L65: 200 | M65: =SUM(L65,J65,H65,F65,D65) -> 1000
A66: Non-Cap Equipment | D66: 4500 | F66: 4500 | H66: 4500 | J66: 4500 | L66: 4500 | M66: 22500
A67: Supplies General | D67: 2000 | F67: 2000 | H67: 2000 | J67: 2000 | L67: 2000 | M67: 10000
M68: 0
M69: 0
M70: 0
M71: 0
M72: 0
M73: 0
A74: Total Materials & Supplies | D74: =SUM(D64:D73) -> 7450 | F74: =SUM(F64:F73) -> 7450 | H74: =SUM(H64:H73) -> 7450 | J74: =SUM(J64:J73) -> 7450 | L74: =SUM(L64:L73) -> 7450 | M74: =SUM(L74,J74,H74,F74,D74) -> 37250
A75: PUBLICATIONS/DOCUMENTATION
M76: =SUM(L76,J76,H76,F76,D76) -> 0
M77: =SUM(L77,J77,H77,F77,D77) -> 0
A78: Total Publications | D78: =SUM(D76) -> 0 | F78: =SUM(F76) -> 0 | H78: =SUM(H76:H76) -> 0 | J78: =SUM(J76:J76) -> 0 | L78: =SUM(L76:L76) -> 0 | M78: =SUM(L78,J78,H78,F78,D78) -> 0
A79: OUTSIDE SERVICES
A80: Router/Switch maintenance | D80: 1800 | F80: 1854 | H80: 1910 | J80: 1967 | L80: 2026 | M80: =SUM(L80,J80,H80,F80,D80) -> 9557
A81: Software/Hardware maintenance UW | F81: 43000 | H81: 44290 | J81: 45619 | L81: 46987 | M81: 179896
A82: Right of way MLHD | D82: 1460 | F82: 1504 | H82: 1549 | J82: 1595 | L82: 1643.24 | M82: 7751.24
A83: Linda Kuhnz Actual Impacts Assesment (AIA) | J83: 31150 | M83: 31150
A84: ABA Consultants Sample processing for AIA | J84: 24600 | M84: 24600
A85: Total Outside Services | D85: =SUM(D80:D84) -> 3260 | F85: =SUM(F80:F84) -> 46358 | H85: =SUM(H80:H84) -> 47749 | J85: =SUM(J80:J84) -> 104931 | L85: =SUM(L80:L84) -> 50656.24 | M85: 252954.24
A86: SUBAWARDS
M87: =SUM(L87,J87,H87,F87,D87) -> 0
M88: =SUM(L88,J88,H88,F88,D88) -> 0
M89: =SUM(L89,J89,H89,F89,D89) -> 0
M90: 0
M91: 0
M92: 0
M93: 0
M94: 0
M95: 0
M96: 0
A97: Total Subawards | D97: =SUM(D87:D96) -> 0 | F97: =SUM(F87:F96) -> 0 | H97: =SUM(H87:H96) -> 0 | J97: =SUM(J87:J96) -> 0 | L97: =SUM(L87:L96) -> 0 | M97: =SUM(L97,J97,H97,F97,D97) -> 0
A98: Subawards subject to OH | D98: ='Subaward Worksheet'!B35 -> 25000 | F98: ='Subaward Worksheet'!C35 -> 0 | H98: ='Subaward Worksheet'!D35 -> 0 | J98: ='Subaward Worksheet'!E35 -> 0 | L98: ='Subaward Worksheet'!F35 -> 0
A99: OH on Subawards | D99: ='Subaward Worksheet'!$B$36 -> 13125 | F99: ='Subaward Worksheet'!$C$36 -> 0 | H99: ='Subaward Worksheet'!$D$36 -> 0 | J99: ='Subaward Worksheet'!$E$36 -> 0 | L99: ='Subaward Worksheet'!$F$36 -> 0 | M99: =SUM(L99,J99,H99,F99,D99) -> 13125
A100: SHIP TIME | B100: Rate | C100: # Days | E100: # Days | G100: # Days | I100: # Days | K100: # Days
C101: 0 | D101: =B101*C101 -> 0 | F101: =29500*E101 -> 0 | H101: =29500*G101 -> 0 | J101: =29500*I101 -> 0 | L101: =29500*K101 -> 0 | M101: =SUM(L101,J101,H101,F101,D101) -> 0
C102: 0 | D102: =B102*C102 -> 0 | F102: =16900*E102 -> 0 | H102: =16900*G102 -> 0 | J102: =16900*I102 -> 0 | L102: =16900*K102 -> 0 | M102: =SUM(L102,J102,H102,F102,D102) -> 0
A103: Rachel Carson w Ventana | B103: ='Projected Ship Rates'!C12 -> 21800 | C103: 4 | D103: =B103*C103 -> 87200 | E103: 4 | F103: ='Projected Ship Rates'!D12*E103 -> 90720 | G103: 2 | H103: ='Projected Ship Rates'!E12*G103 -> 47400 | I103: 10 | J103: ='Projected Ship Rates'!F12*I103 -> 245000 | K103: 8 | L103: ='Projected Ship Rates'!G12*K103 -> 203920 | M103: =SUM(L103,J103,H103,F103,D103) -> 674240
D104: =B104*C104 -> 0 | F104: =B104*E104 -> 0 | H104: =B104*G104 -> 0 | J104: =B104*I104 -> 0 | L104: =B104*K104 -> 0 | M104: =SUM(L104,J104,H104,F104,D104) -> 0
A105: Total Ship Time | D105: =SUM(D103:D104) -> 87200 | F105: =SUM(F103:F104) -> 90720 | H105: =SUM(H103:H104) -> 47400 | J105: =SUM(J103:J104) -> 245000 | L105: =SUM(L103:L104) -> 203920 | M105: =SUM(L105,J105,H105,F105,D105) -> 674240
A106: TUITION/FEES | C106: Qtrs. | E106: Qtrs. | G106: Qtrs. | I106: Qtrs. | K106: Qtrs.
A107: UCSC Grad Student | D107: =(C107*'Salary Worksheet'!D31) -> 0 | F107: =(E107*'Salary Worksheet'!E31) -> 0 | H107: =(G107*'Salary Worksheet'!F31) -> 0 | I107: 0 | J107: =(I107*'Salary Worksheet'!G31) -> 0 | K107: 0 | L107: =(K107*'Salary Worksheet'!H31) -> 0 | M107: =SUM(L107,J107,H107,F107,D107) -> 0
A108: UCSC Grad Student - Nonres. | C108: 0 | D108: =(C108*'Salary Worksheet'!D32) -> 0 | E108: 0 | F108: =(E108*'Salary Worksheet'!E32) -> 0 | G108: 0 | H108: =(G108*'Salary Worksheet'!F32) -> 0 | I108: 0 | J108: =(I108*'Salary Worksheet'!G32) -> 0 | K108: 0 | L108: =(K108*'Salary Worksheet'!H32) -> 0 | M108: =SUM(L108,J108,H108,F108,D108) -> 0
A109: Total Tuition/Fees | D109: =SUM(D107:D108) -> 0 | F109: =SUM(F107:F108) -> 0 | H109: =SUM(H107:H108) -> 0 | J109: =SUM(J107:J108) -> 0 | L109: =SUM(L107:L108) -> 0 | M109: =SUM(L109,J109,H109,F109,D109) -> 0
A110: SHIPPING
M111: =SUM(L111,J111,H111,F111,D111) -> 0
A112: Total Shipping | D112: =SUM(D111) -> 0 | F112: =SUM(F111) -> 0 | H112: =SUM(H111:H111) -> 0 | J112: =SUM(J111:J111) -> 0 | L112: =SUM(L111:L111) -> 0 | M112: 0
A114: TOTAL DIRECT COSTS | D114: =SUM(D112,D109,D105,D97,D85,D78,D74,D62,D56,D52,D40) -> 937401.4145 | F114: =SUM(F112,F109,F105,F97,F85,F78,F74,F62,F56,F52,F40) -> 386190.685 | H114: =SUM(H112,H109,H105,H97,H85,H78,H74,H62,H56,H52,H40) -> 333069.43 | J114: =SUM(J112,J109,J105,J97,J85,J78,J74,J62,J56,J52,J40) -> 594735.6372 | L114: =SUM(L112,L109,L105,L97,L85,L78,L74,L62,L56,L52,L40) -> 506471.6266 | M114: 2757868.793
A115: MODIFIED TOTAL DIRECT COST BASE | D115: =D114-D102-D101-D97+D98-D62-D52-D105 -> 247103.9915 | F115: =F114-F102-F101-F97+F98-F62-F52 -> 331447.5291 | H115: =H114-H102-H101-H97+H98-H62-H52 -> 333069.43 | J115: =J114-J102-J101-J97+J98-J62-J52 -> 594735.6372 | L115: =L114-L102-L101-L97+L98-L62-L52 -> 506471.6266 | M115: 2012828.214
A116: TOTAL INDIRECT COSTS | C116: 0.525 | D116: =ROUND(D115*$C$116,0) -> 129730 | F116: =ROUND(F115*$C$116,0) -> 174010 | H116: =ROUND(H115*$C$116,0) -> 174861 | J116: 312236 | L116: 265898 | M116: 1056735
A117: TOTAL DIRECT & INDIRECT COSTS | D117: =+D116+D114 -> 1067131.414 | F117: =+F116+F114 -> 560200.685 | H117: =+H116+H114 -> 507930.43 | J117: =+J116+J114 -> 906971.6372 | L117: =+L116+L114 -> 772369.6266 | M117: 3814603.793

Sheet CIP MARS Node Upgrade
A1: CIP: MARS Node Upgrade | L1: Updated: | M1: =TODAY() -> 2021-06-01
C2: 03/01/21-02/28/22 | E2: 03/01/22-02/28/23 | G2: 03/01/23-02/28/24 | I2: 03/01/24-02/28/25 | K2: 03/01/25-02/28/26
A3: TOTAL | C3: =D117 -> 620597.423 | E3: =F117 -> 47243.15589 | G3: =H117 -> 0 | I3: =J117 -> 0 | K3: =L117 -> 0 | M3: =M117 -> 667840.5789
A4: SALARY/WAGES | C4: 2 | D4: Y1 | E4: =IF($C$4=1, "HOURS", "MONTHS") -> MONTHS | F4: Y2 | G4: =IF($C$4=1, "HOURS", "MONTHS") -> MONTHS | H4: Y3 | I4: =IF($C$4=1, "HOURS", "MONTHS") -> MONTHS | J4: Y4 | K4: =IF($C$4=1, "HOURS", "MONTHS") -> MONTHS | L4: Y5 | M4: Total
A6: ='Salary Worksheet'!B4 -> Mike Kelly | C6: 0 | D6: =IF($C$4=1,ROUND('Salary Worksheet'!D18*C6,2), ROUND('Salary Worksheet'!D4/12*C6,2)) -> 0 | E6: 0 | F6: =IF($C$4=1,ROUND('Salary Worksheet'!E18*E6,2), ROUND('Salary Worksheet'!E4/12*E6,2)) -> 0 | G6: 0 | H6: =IF($C$4=1,ROUND('Salary Worksheet'!F18*G6,2), ROUND('Salary Worksheet'!F4/12*G6,0)) -> 0 | I6: 0 | J6: =IF($C$4=1,ROUND('Salary Worksheet'!G18*I6,2), ROUND('Salary Worksheet'!G4/12*I6,0)) -> 0 | K6: 0 | L6: =IF($C$4=1,ROUND('Salary Worksheet'!H18*K6,2), ROUND('Salary Worksheet'!H4/12*K6,0)) -> 0 | M6: =SUM(L6,J6,H6,F6,D6) -> 0
C7: 0 | D7: =IF($C$4=1,ROUND('Salary Worksheet'!D19*C7,2), ROUND('Salary Worksheet'!D5/12*C7,2)) -> 0 | E7: 0 | F7: =IF($C$4=1,ROUND('Salary Worksheet'!E19*E7,2), ROUND('Salary Worksheet'!E5/12*E7,2)) -> 0 | G7: 0 | H7: =IF($C$4=1,ROUND('Salary Worksheet'!F19*G7,2), ROUND('Salary Worksheet'!F5/12*G7,0)) -> 0 | I7: 0 | J7: =IF($C$4=1,ROUND('Salary Worksheet'!G19*I7,2), ROUND('Salary Worksheet'!G5/12*I7,0)) -> 0 | K7: 0 | L7: =IF($C$4=1,ROUND('Salary Worksheet'!H19*K7,2), ROUND('Salary Worksheet'!H5/12*K7,0)) -> 0 | M7: =SUM(J7+H7+F7+D7+L7) -> 0
C8: 0 | D8: =IF($C$4=1,ROUND('Salary Worksheet'!D20*C8,2), ROUND('Salary Worksheet'!D6/12*C8,2)) -> 0 | E8: 0 | F8: =IF($C$4=1,ROUND('Salary Worksheet'!E20*E8,2), ROUND('Salary Worksheet'!E6/12*E8,2)) -> 0 | G8: 0 | H8: =IF($C$4=1,ROUND('Salary Worksheet'!F20*G8,2), ROUND('Salary Worksheet'!F6/12*G8,0)) -> 0 | I8: 0 | J8: =IF($C$4=1,ROUND('Salary Worksheet'!G20*I8,2), ROUND('Salary Worksheet'!G6/12*I8,0)) -> 0 | K8: 0 | L8: =IF($C$4=1,ROUND('Salary Worksheet'!H20*K8,2), ROUND('Salary Worksheet'!H6/12*K8,0)) -> 0 | M8: =SUM(J8+H8+F8+D8+L8) -> 0
A9: Subtotal Sr. Personnel Salary | D9: =SUM(D6:D8) -> 0 | F9: =SUM(F6:F8) -> 0 | H9: =SUM(H6:H8) -> 0 | J9: =SUM(J6:J8) -> 0 | L9: =SUM(L6:L8) -> 0 | M9: =SUM(J9+H9+F9+D9+L9) -> 0
A10: ='Salary Worksheet'!B7 -> Craig Dawe | C10: 2 | D10: =IF($C$4=1,ROUND('Salary Worksheet'!D21*C10,2), ROUND('Salary Worksheet'!D7/12*C10,0)) -> 31795 | E10: 1 | F10: =IF($C$4=1,ROUND('Salary Worksheet'!E21*E10,2), ROUND('Salary Worksheet'!E7/12*E10,2)) -> 16374.42 | G10: 0 | H10: =IF($C$4=1,ROUND('Salary Worksheet'!F21*G10,2), ROUND('Salary Worksheet'!F7/12*G10,2)) -> 0 | I10: 0 | J10: =IF($C$4=1,ROUND('Salary Worksheet'!G21*I10,2), ROUND('Salary Worksheet'!G7/12*I10,2)) -> 0 | K10: 0 | L10: =IF($C$4=1,ROUND('Salary Worksheet'!H21*K10,2), ROUND('Salary Worksheet'!H7/12*K10,2)) -> 0 | M10: =SUM(L10+J10+H10+F10+D10) -> 48169.42
A11: ='Salary Worksheet'!B8 -> MARS Operations Manager | C11: 0 | D11: =IF($C$4=1,ROUND('Salary Worksheet'!D22*C11,2), ROUND('Salary Worksheet'!D8/12*C11,0)) -> 0 | E11: 0 | F11: =IF($C$4=1,ROUND('Salary Worksheet'!E22*E11,2), ROUND('Salary Worksheet'!E8/12*E11,2)) -> 0 | G11: 0 | H11: =IF($C$4=1,ROUND('Salary Worksheet'!F22*G11,2), ROUND('Salary Worksheet'!F8/12*G11,2)) -> 0 | I11: 0 | J11: =IF($C$4=1,ROUND('Salary Worksheet'!G22*I11,2), ROUND('Salary Worksheet'!G8/12*I11,2)) -> 0 | K11: 0 | L11: =IF($C$4=1,ROUND('Salary Worksheet'!H22*K11,2), ROUND('Salary Worksheet'!H8/12*K11,2)) -> 0 | M11: 0
A12: ='Salary Worksheet'!B9 -> Dave French | C12: 0.67 | D12: =IF($C$4=1,ROUND('Salary Worksheet'!D23*C12,2), ROUND('Salary Worksheet'!D9/12*C12,0)) -> 6356 | E12: 0.33 | F12: =IF($C$4=1,ROUND('Salary Worksheet'!E23*E12,2), ROUND('Salary Worksheet'!E9/12*E12,2)) -> 3224.71 | G12: 0 | H12: =IF($C$4=1,ROUND('Salary Worksheet'!F23*G12,2), ROUND('Salary Worksheet'!F9/12*G12,2)) -> 0 | I12: 0 | J12: =IF($C$4=1,ROUND('Salary Worksheet'!G23*I12,2), ROUND('Salary Worksheet'!G9/12*I12,2)) -> 0 | K12: 0 | L12: =IF($C$4=1,ROUND('Salary Worksheet'!H23*K12,2), ROUND('Salary Worksheet'!H9/12*K12,2)) -> 0 | M12: 9580.71
A13: ='Salary Worksheet'!B10 -> Paul McGill | C13: 0.25 | D13: =IF($C$4=1,ROUND('Salary Worksheet'!D24*C13,2), ROUND('Salary Worksheet'!D10/12*C13,0)) -> 4073 | E13: 0 | F13: =IF($C$4=1,ROUND('Salary Worksheet'!E24*E13,2), ROUND('Salary Worksheet'!E10/12*E13,2)) -> 0 | G13: 0 | H13: =IF($C$4=1,ROUND('Salary Worksheet'!F24*G13,2), ROUND('Salary Worksheet'!F10/12*G13,2)) -> 0 | I13: 0 | J13: =IF($C$4=1,ROUND('Salary Worksheet'!G24*I13,2), ROUND('Salary Worksheet'!G10/12*I13,2)) -> 0 | K13: 0 | L13: =IF($C$4=1,ROUND('Salary Worksheet'!H24*K13,2), ROUND('Salary Worksheet'!H10/12*K13,2)) -> 0 | M13: 4073
A14: ='Salary Worksheet'!B11 -> Ed Mellinger | C14: 0.25 | D14: =IF($C$4=1,ROUND('Salary Worksheet'!D25*C14,2), ROUND('Salary Worksheet'!D11/12*C14,0)) -> 3798 | E14: 0 | F14: =IF($C$4=1,ROUND('Salary Worksheet'!E25*E14,2), ROUND('Salary Worksheet'!E11/12*E14,2)) -> 0 | G14: 0 | H14: =IF($C$4=1,ROUND('Salary Worksheet'!F25*G14,2), ROUND('Salary Worksheet'!F11/12*G14,2)) -> 0 | I14: 0 | J14: =IF($C$4=1,ROUND('Salary Worksheet'!G25*I14,2), ROUND('Salary Worksheet'!G11/12*I14,2)) -> 0 | K14: 0 | L14: =IF($C$4=1,ROUND('Salary Worksheet'!H25*K14,2), ROUND('Salary Worksheet'!H11/12*K14,2)) -> 0 | M14: 3798
A15: ='Salary Worksheet'!B12 -> Rich Schramm | C15: 0.25 | D15: =IF($C$4=1,ROUND('Salary Worksheet'!D26*C15,2), ROUND('Salary Worksheet'!D12/12*C15,0)) -> 3598 | E15: 0 | F15: =IF($C$4=1,ROUND('Salary Worksheet'!E26*E15,2), ROUND('Salary Worksheet'!E12/12*E15,2)) -> 0 | G15: 0 | H15: =IF($C$4=1,ROUND('Salary Worksheet'!F26*G15,2), ROUND('Salary Worksheet'!F12/12*G15,2)) -> 0 | I15: 0 | J15: =IF($C$4=1,ROUND('Salary Worksheet'!G26*I15,2), ROUND('Salary Worksheet'!G12/12*I15,2)) -> 0 | K15: 0 | L15: =IF($C$4=1,ROUND('Salary Worksheet'!H26*K15,2), ROUND('Salary Worksheet'!H12/12*K15,2)) -> 0 | M15: 3598
A16: ='Salary Worksheet'!B13 -> Mike Risi | C16: 0.25 | D16: =IF($C$4=1,ROUND('Salary Worksheet'!D27*C16,2), ROUND('Salary Worksheet'!D13/12*C16,0)) -> 3732 | E16: 0 | F16: =IF($C$4=1,ROUND('Salary Worksheet'!E27*E16,2), ROUND('Salary Worksheet'!E13/12*E16,2)) -> 0 | G16: 0 | H16: =IF($C$4=1,ROUND('Salary Worksheet'!F27*G16,2), ROUND('Salary Worksheet'!F13/12*G16,2)) -> 0 | I16: 0 | J16: =IF($C$4=1,ROUND('Salary Worksheet'!G27*I16,2), ROUND('Salary Worksheet'!G13/12*I16,2)) -> 0 | K16: 0 | L16: =IF($C$4=1,ROUND('Salary Worksheet'!H27*K16,2), ROUND('Salary Worksheet'!H13/12*K16,2)) -> 0 | M16: 3732
A17: ='Salary Worksheet'!B14 -> Jon Erickson | C17: 0.75 | D17: =IF($C$4=1,ROUND('Salary Worksheet'!D28*C17,2), ROUND('Salary Worksheet'!D14/12*C17,0)) -> 10534 | E17: 0 | F17: =IF($C$4=1,ROUND('Salary Worksheet'!E28*E17,2), ROUND('Salary Worksheet'!E14/12*E17,2)) -> 0 | G17: 0 | H17: =IF($C$4=1,ROUND('Salary Worksheet'!F28*G17,2), ROUND('Salary Worksheet'!F14/12*G17,2)) -> 0 | I17: 0 | J17: =IF($C$4=1,ROUND('Salary Worksheet'!G28*I17,2), ROUND('Salary Worksheet'!G14/12*I17,2)) -> 0 | K17: 0 | L17: =IF($C$4=1,ROUND('Salary Worksheet'!H28*K17,2), ROUND('Salary Worksheet'!H14/12*K17,2)) -> 0 | M17: 10534
A18: ='Salary Worksheet'!B15 -> Ray Thompson | C18: 0.25 | D18: =IF($C$4=1,ROUND('Salary Worksheet'!D29*C18,2), ROUND('Salary Worksheet'!D15/12*C18,0)) -> 2525 | E18: 0 | F18: =IF($C$4=1,ROUND('Salary Worksheet'!E29*E18,2), ROUND('Salary Worksheet'!E15/12*E18,2)) -> 0 | G18: 0 | H18: =IF($C$4=1,ROUND('Salary Worksheet'!F29*G18,2), ROUND('Salary Worksheet'!F15/12*G18,2)) -> 0 | I18: 0 | J18: =IF($C$4=1,ROUND('Salary Worksheet'!G29*I18,2), ROUND('Salary Worksheet'!G15/12*I18,2)) -> 0 | K18: 0 | L18: =IF($C$4=1,ROUND('Salary Worksheet'!H29*K18,2), ROUND('Salary Worksheet'!H15/12*K18,2)) -> 0 | M18: 2525
A19: ='Salary Worksheet'!B16 -> Duane Thompson | C19: 1.33 | D19: =IF($C$4=1,ROUND('Salary Worksheet'!D30*C19,2), ROUND('Salary Worksheet'!D16/12*C19,0)) -> 13511 | E19: 1 | F19: =IF($C$4=1,ROUND('Salary Worksheet'!E30*E19,2), ROUND('Salary Worksheet'!E16/12*E19,2)) -> 10463.33 | G19: 0 | H19: =IF($C$4=1,ROUND('Salary Worksheet'!F30*G19,2), ROUND('Salary Worksheet'!F16/12*G19,2)) -> 0 | I19: 0 | J19: =IF($C$4=1,ROUND('Salary Worksheet'!G30*I19,2), ROUND('Salary Worksheet'!G16/12*I19,2)) -> 0 | K19: 0 | L19: =IF($C$4=1,ROUND('Salary Worksheet'!H30*K19,2), ROUND('Salary Worksheet'!H16/12*K19,2)) -> 0 | M19: 23974.33
A20: Subtotal Other Employee Salary | D20: =SUM(D10:D19) -> 79922 | F20: =SUM(F10:F19) -> 30062.46 | H20: =SUM(H10:H19) -> 0 | J20: =SUM(J10:J19) -> 0 | L20: =SUM(L10:L19) -> 0 | M20: =SUM(J20+H20+F20+D20+L20) -> 109984.46
A21: POSTDOCS, GSRs, PART-TIME, TEMPS
A23: PostDoc(s) | C23: 0 | D23: =IF($C$4=1,ROUND('Salary Worksheet'!D28*C23,2), ROUND('Salary Worksheet'!D27/12*C23,0)) -> 0 | E23: 0 | F23: =IF($C$4=1,ROUND('Salary Worksheet'!E28*E23,2), ROUND('Salary Worksheet'!E27/12*E23,0)) -> 0 | G23: 0 | H23: =IF($C$4=1,ROUND('Salary Worksheet'!F28*G23,2), ROUND('Salary Worksheet'!F27/12*G23,0)) -> 0 | I23: 0 | J23: =IF($C$4=1,ROUND('Salary Worksheet'!G28*I23,2), ROUND('Salary Worksheet'!G27/12*I23,0)) -> 0 | K23: 0 | L23: =IF($C$4=1,ROUND('Salary Worksheet'!H28*K23,2), ROUND('Salary Worksheet'!H27/12*K23,0)) -> 0 | M23: =SUM(J23+H23+F23+D23+L23) -> 0
A24: Graduate Student(s) (GSRs) | C24: 0 | D24: =IF($C$4=1,ROUND('Salary Worksheet'!D30*C24,2), ROUND('Salary Worksheet'!D29/12*C24,0)) -> 0 | E24: 0 | F24: =IF($C$4=1,ROUND('Salary Worksheet'!E30*E24,2), ROUND('Salary Worksheet'!E29/12*E24,0)) -> 0 | G24: 0 | H24: =IF($C$4=1,ROUND('Salary Worksheet'!F30*G24,2), ROUND('Salary Worksheet'!F29/12*G24,0)) -> 0 | I24: 0 | J24: =IF($C$4=1,ROUND('Salary Worksheet'!G30*I24,2), ROUND('Salary Worksheet'!G29/12*I24,0)) -> 0 | K24: 0 | L24: =IF($C$4=1,ROUND('Salary Worksheet'!H30*K24,2), ROUND('Salary Worksheet'!H29/12*K24,0)) -> 0 | M24: 0
A25: NA PT (30-39 hrs) | C25: 0 | D25: =IF($C$4=1,ROUND('Salary Worksheet'!E43*C25,2), ROUND('Salary Worksheet'!E36/12*C25,0)) -> 0 | E25: 0 | F25: =IF($C$4=1,ROUND('Salary Worksheet'!F43*E25,2), ROUND('Salary Worksheet'!F36/12*E25,0)) -> 0 | G25: 0 | H25: =IF($C$4=1,ROUND('Salary Worksheet'!G43*G25,2), ROUND('Salary Worksheet'!G36/12*G25,0)) -> 0 | I25: 0 | J25: =IF($C$4=1,ROUND('Salary Worksheet'!H43*I25,2), ROUND('Salary Worksheet'!H36/12*I25,0)) -> 0 | K25: 0 | L25: =IF($C$4=1,ROUND('Salary Worksheet'!I43*K25,2), ROUND('Salary Worksheet'!I36/12*K25,0)) -> 0 | M25: 0
A26: NA PT (30-39 hrs) | C26: 0 | D26: =IF($C$4=1,ROUND('Salary Worksheet'!E44*C26,2), ROUND('Salary Worksheet'!E37/12*C26,0)) -> 0 | E26: 0 | F26: =IF($C$4=1,ROUND('Salary Worksheet'!F44*E26,2), ROUND('Salary Worksheet'!F37/12*E26,0)) -> 0 | G26: 0 | H26: =IF($C$4=1,ROUND('Salary Worksheet'!G44*G26,2), ROUND('Salary Worksheet'!G37/12*G26,0)) -> 0 | I26: 0 | J26: =IF($C$4=1,ROUND('Salary Worksheet'!H44*I26,2), ROUND('Salary Worksheet'!H37/12*I26,0)) -> 0 | K26: 0 | L26: =IF($C$4=1,ROUND('Salary Worksheet'!I44*K26,2), ROUND('Salary Worksheet'!I37/12*K26,0)) -> 0 | M26: =SUM(J26+H26+F26+D26+L26) -> 0
A27: Part-time (<= 29 hrs/wk) 1 | C27: 0 | D27: =IF($C$4=1,ROUND('Salary Worksheet'!E45*C27,2), ROUND('Salary Worksheet'!E38/12*C27,0)) -> 0 | E27: 0 | F27: =IF($C$4=1,ROUND('Salary Worksheet'!F45*E27,2), ROUND('Salary Worksheet'!F38/12*E27,0)) -> 0 | G27: 0 | H27: =IF($C$4=1,ROUND('Salary Worksheet'!G45*G27,2), ROUND('Salary Worksheet'!G38/12*G27,0)) -> 0 | I27: 0 | J27: =IF($C$4=1,ROUND('Salary Worksheet'!H45*I27,2), ROUND('Salary Worksheet'!H38/12*I27,0)) -> 0 | K27: 0 | L27: =IF($C$4=1,ROUND('Salary Worksheet'!I45*K27,2), ROUND('Salary Worksheet'!I38/12*K27,0)) -> 0 | M27: 0
A28: Part-time (<= 29 hrs/wk) 2 | C28: 0 | D28: =IF($C$4=1,ROUND('Salary Worksheet'!E46*C28,2), ROUND('Salary Worksheet'!E39/12*C28,0)) -> 0 | E28: 0 | F28: =IF($C$4=1,ROUND('Salary Worksheet'!F46*E28,2), ROUND('Salary Worksheet'!F39/12*E28,0)) -> 0 | G28: 0 | H28: =IF($C$4=1,ROUND('Salary Worksheet'!G46*G28,2), ROUND('Salary Worksheet'!G39/12*G28,0)) -> 0 | I28: 0 | J28: =IF($C$4=1,ROUND('Salary Worksheet'!H46*I28,2), ROUND('Salary Worksheet'!H39/12*I28,0)) -> 0 | K28: 0 | L28: =IF($C$4=1,ROUND('Salary Worksheet'!I46*K28,2), ROUND('Salary Worksheet'!I39/12*K28,0)) -> 0 | M28: =SUM(J28+H28+F28+D28+L28) -> 0
A29: Temporary Employee 1 | C29: 0 | D29: =IF($C$4=1,ROUND('Salary Worksheet'!E47*C29,2), ROUND('Salary Worksheet'!E40/12*C29,0)) -> 0 | E29: 0 | F29: =IF($C$4=1,ROUND('Salary Worksheet'!F47*E29,2), ROUND('Salary Worksheet'!F40/12*E29,0)) -> 0 | G29: 0 | H29: =IF($C$4=1,ROUND('Salary Worksheet'!G47*G29,2), ROUND('Salary Worksheet'!G40/12*G29,0)) -> 0 | I29: 0 | J29: =IF($C$4=1,ROUND('Salary Worksheet'!H47*I29,2), ROUND('Salary Worksheet'!H40/12*I29,0)) -> 0 | K29: 0 | L29: =IF($C$4=1,ROUND('Salary Worksheet'!I47*K29,2), ROUND('Salary Worksheet'!I40/12*K29,0)) -> 0 | M29: 0
A30: Temporary Employee 2 | C30: 0 | D30: =IF($C$4=1,ROUND('Salary Worksheet'!E48*C30,2), ROUND('Salary Worksheet'!E41/12*C30,0)) -> 0 | E30: 0 | F30: =IF($C$4=1,ROUND('Salary Worksheet'!F48*E30,2), ROUND('Salary Worksheet'!F41/12*E30,0)) -> 0 | G30: 0 | H30: =IF($C$4=1,ROUND('Salary Worksheet'!G48*G30,2), ROUND('Salary Worksheet'!G41/12*G30,0)) -> 0 | I30: 0 | J30: =IF($C$4=1,ROUND('Salary Worksheet'!H48*I30,2), ROUND('Salary Worksheet'!H41/12*I30,0)) -> 0 | K30: 0 | L30: =IF($C$4=1,ROUND('Salary Worksheet'!I48*K30,2), ROUND('Salary Worksheet'!I41/12*K30,0)) -> 0 | M30: =SUM(J30+H30+F30+D30+L30) -> 0
A31: Subtotal Other Personnel Salary | D31: =SUM(D20:D29) -> 79922 | F31: =SUM(F20:F29) -> 30062.46 | H31: =SUM(H20:H29) -> 0 | J31: =SUM(J20:J29) -> 0 | L31: =SUM(L20:L29) -> 0 | M31: 109984.46
A32: Total Salary & Wages | D32: =SUM(D31+D9) -> 79922 | F32: =SUM(F31+F9) -> 30062.46 | H32: =SUM(H31+H9) -> 0 | J32: =SUM(J31+J9) -> 0 | L32: =SUM(L31+L9) -> 0 | M32: 109984.46
A33: FRINGE BENEFITS
A34: Full-time (Regular) | B34: 0.5715 | D34: =((D9+D20)*$B$34) -> 45675.423 | F34: =((F9+F20)*$B$34) -> 17180.69589 | H34: =((H9+H20)*$B$34) -> 0 | J34: =((J9+J20)*$B$34) -> 0 | L34: =((L9+L20)*$B$34) -> 0 | M34: =SUM(J34+H34+F34+D34+L34) -> 62856.11889
A35: PostDoc | B35: 0.4123 | D35: =D23*$B$35 -> 0 | F35: =F23*$B$35 -> 0 | H35: =H23*$B$35 -> 0 | J35: =J23*$B$35 -> 0 | L35: =L23*$B$35 -> 0 | M35: 0
A36: PT (30-39 hrs) | B36: 0.5715 | D36: =(SUM(D25:D26))*$B$36 -> 0 | F36: =(SUM(F25:F26)*$B$36) -> 0 | H36: =(SUM(H25:H26)*$B$36) -> 0 | J36: =(SUM(J25:J26)*$B$36) -> 0 | L36: =(SUM(L25:L26)*$B$36) -> 0 | M36: 0
A37: GSRs + PT (20-29 hrs) | B37: 0.3062 | D37: =(SUM(D24,D27,D28))*$B$37 -> 0 | F37: =(SUM(F24,F27,F28))*$B$37 -> 0 | H37: =(SUM(H24,H27,H28))*$B$37 -> 0 | J37: =(SUM(J24,J27,J28))*$B$37 -> 0 | L37: =(SUM(L24,L27,L28))*$B$37 -> 0 | M37: 0
A38: Temp | B38: 0.1111 | D38: =(D29+D30)*$B$38 -> 0 | F38: =(F29+F30)*$B$38 -> 0 | H38: =(H29+H30)*$B$38 -> 0 | J38: =(J29+J30)*$B$38 -> 0 | L38: =(L29+L30)*$B$38 -> 0 | M38: 0
A39: Total Fringe Benefits | D39: =SUM(D34:D38) -> 45675.423 | F39: =SUM(F34:F38) -> 17180.69589 | H39: =SUM(H34:H38) -> 0 | J39: =SUM(J34:J38) -> 0 | L39: =SUM(L34:L38) -> 0 | M39: 62856.11889
A40: Total Salary & Benefits | D40: =SUM(D39,D32) -> 125597.423 | F40: =SUM(F39,F32) -> 47243.15589 | H40: =SUM(H39,H32) -> 0 | J40: =SUM(J39,J32) -> 0 | L40: =SUM(L39,L32) -> 0 | M40: 172840.5789
A41: CAPITAL EQUIPMENT (items >$5K)
A42: ODI Hybrid Test lead (purchased under award OCE 1514756) | M42: =SUM(J42+H42+F42+D42+L42) -> 0
A43: Titanium Billet and end plates (new MVC housing)(purchased under award OCE 1514756) | M43: =SUM(J43+H43+F43+D43+L43) -> 0
A44: ODI Wet Mate Panel Connectors Refurbish x5 | D44: 45000 | M44: 45000
A45: Data transport, data conv, timing connectors, supplies | D45: 15000 | M45: 15000
M46: 0
M47: 0
M48: 0
M49: 0
M50: 0
M51: 0
A52: Total Equipment | D52: =SUM(D42:D51) -> 60000 | F52: =SUM(F42:F51) -> 0 | H52: =SUM(H42:H51) -> 0 | J52: =SUM(J42:J51) -> 0 | L52: =SUM(L42:L51) -> 0 | M52: =SUM(L52,J52,H52,F52,D52) -> 60000
A53: TRAVEL
A54: Travel - Domestic | D54: 0 | F54: 0 | H54: 0 | J54: 0 | L54: 0 | M54: =SUM(L54,J54,H54,F54,D54) -> 0
A55: Travel - Foreign | M55: =SUM(L55,J55,H55,F55,D55) -> 0
A56: Total Travel | D56: =SUM(D54:D55) -> 0 | F56: =SUM(F54:F55) -> 0 | H56: =SUM(H54:H55) -> 0 | J56: =SUM(J54:J55) -> 0 | L56: =SUM(L54:L55) -> 0 | M56: =SUM(L56,J56,H56,F56,D56) -> 0
A57: PARTICIPANT SUPPORT
A58: Stipends | M58: =SUM(L58,J58,H58,F58,D58) -> 0
A59: Travel | M59: =SUM(L59,J59,H59,F59,D59) -> 0
A60: Subsistence | M60: =SUM(L60,J60,H60,F60,D60) -> 0
A61: Other | M61: =SUM(L61,J61,H61,F61,D61) -> 0
A62: Total Participant Support | D62: =SUM(D58:D61) -> 0 | F62: =SUM(F58:F61) -> 0 | H62: =SUM(H58:H61) -> 0 | J62: =SUM(J58:J61) -> 0 | L62: =SUM(L58:L61) -> 0 | M62: =SUM(L62,J62,H62,F62,D62) -> 0
A63: MATERIALS & SUPPLIES
M64: =SUM(L64,J64,H64,F64,D64) -> 0
M65: =SUM(L65,J65,H65,F65,D65) -> 0
M66: 0
M67: 0
M68: 0
M69: 0
M70: 0
M71: 0
M72: 0
M73: 0
A74: Total Materials & Supplies | D74: =SUM(D64:D73) -> 0 | F74: =SUM(F64:F73) -> 0 | H74: =SUM(H64:H73) -> 0 | J74: =SUM(J64:J73) -> 0 | L74: =SUM(L64:L73) -> 0 | M74: =SUM(L74,J74,H74,F74,D74) -> 0
A75: PUBLICATIONS/DOCUMENTATION
M76: =SUM(L76,J76,H76,F76,D76) -> 0
M77: =SUM(L77,J77,H77,F77,D77) -> 0
A78: Total Publications | D78: =SUM(D76) -> 0 | F78: =SUM(F76) -> 0 | H78: =SUM(H76:H76) -> 0 | J78: =SUM(J76:J76) -> 0 | L78: =SUM(L76:L76) -> 0 | M78: =SUM(L78,J78,H78,F78,D78) -> 0
A79: OUTSIDE SERVICES
A80: UW SPL build & install new low voltage electronics & control software | D80: 430000 | M80: =SUM(L80,J80,H80,F80,D80) -> 430000
M81: 0
M82: 0
M83: 0
M84: 0
A85: Total Outside Services | D85: =SUM(D80:D84) -> 430000 | F85: =SUM(F80:F84) -> 0 | H85: =SUM(H80:H84) -> 0 | J85: =SUM(J80:J84) -> 0 | L85: =SUM(L80:L84) -> 0 | M85: 430000
A86: SUBAWARDS
M87: =SUM(L87,J87,H87,F87,D87) -> 0
M88: =SUM(L88,J88,H88,F88,D88) -> 0
M89: =SUM(L89,J89,H89,F89,D89) -> 0
M90: 0
M91: 0
M92: 0
M93: 0
M94: 0
M95: 0
M96: 0
A97: Total Subawards | D97: =SUM(D87:D96) -> 0 | F97: =SUM(F87:F96) -> 0 | H97: =SUM(H87:H96) -> 0 | J97: =SUM(J87:J96) -> 0 | L97: =SUM(L87:L96) -> 0 | M97: =SUM(L97,J97,H97,F97,D97) -> 0
A98: Subawards subject to OH | D98: ='Subaward Worksheet'!B35 -> 25000 | F98: ='Subaward Worksheet'!C35 -> 0 | H98: ='Subaward Worksheet'!D35 -> 0 | J98: ='Subaward Worksheet'!E35 -> 0 | L98: ='Subaward Worksheet'!F35 -> 0
A99: OH on Subawards | D99: ='Subaward Worksheet'!$B$36 -> 13125 | F99: ='Subaward Worksheet'!$C$36 -> 0 | H99: ='Subaward Worksheet'!$D$36 -> 0 | J99: ='Subaward Worksheet'!$E$36 -> 0 | L99: ='Subaward Worksheet'!$F$36 -> 0 | M99: =SUM(L99,J99,H99,F99,D99) -> 13125
A100: SHIP TIME | B100: Rate | C100: # Days | E100: # Days | G100: # Days | I100: # Days | K100: # Days
C101: 0 | D101: =B101*C101 -> 0 | F101: =29500*E101 -> 0 | H101: =29500*G101 -> 0 | J101: =29500*I101 -> 0 | L101: =29500*K101 -> 0 | M101: =SUM(L101,J101,H101,F101,D101) -> 0
C102: 0 | D102: =B102*C102 -> 0 | F102: =16900*E102 -> 0 | H102: =16900*G102 -> 0 | J102: =16900*I102 -> 0 | L102: =16900*K102 -> 0 | M102: =SUM(L102,J102,H102,F102,D102) -> 0
C103: 0 | D103: =B103*C103 -> 0 | E103: 0 | F103: ='Projected Ship Rates'!D12*E103 -> 0 | G103: 0 | H103: ='Projected Ship Rates'!E12*G103 -> 0 | I103: 0 | J103: ='Projected Ship Rates'!F12*I103 -> 0 | K103: 0 | L103: ='Projected Ship Rates'!G12*K103 -> 0 | M103: =SUM(L103,J103,H103,F103,D103) -> 0
D104: =B104*C104 -> 0 | F104: =B104*E104 -> 0 | H104: =B104*G104 -> 0 | J104: =B104*I104 -> 0 | L104: =B104*K104 -> 0 | M104: =SUM(L104,J104,H104,F104,D104) -> 0
A105: Total Ship Time | D105: =SUM(D103:D104) -> 0 | F105: =SUM(F103:F104) -> 0 | H105: =SUM(H103:H104) -> 0 | J105: =SUM(J103:J104) -> 0 | L105: =SUM(L103:L104) -> 0 | M105: =SUM(L105,J105,H105,F105,D105) -> 0
A106: TUITION/FEES | C106: Qtrs. | E106: Qtrs. | G106: Qtrs. | I106: Qtrs. | K106: Qtrs.
A107: UCSC Grad Student | D107: =(C107*'Salary Worksheet'!D31) -> 0 | F107: =(E107*'Salary Worksheet'!E31) -> 0 | H107: =(G107*'Salary Worksheet'!F31) -> 0 | I107: 0 | J107: =(I107*'Salary Worksheet'!G31) -> 0 | K107: 0 | L107: =(K107*'Salary Worksheet'!H31) -> 0 | M107: =SUM(L107,J107,H107,F107,D107) -> 0
A108: UCSC Grad Student - Nonres. | C108: 0 | D108: =(C108*'Salary Worksheet'!D32) -> 0 | E108: 0 | F108: =(E108*'Salary Worksheet'!E32) -> 0 | G108: 0 | H108: =(G108*'Salary Worksheet'!F32) -> 0 | I108: 0 | J108: =(I108*'Salary Worksheet'!G32) -> 0 | K108: 0 | L108: =(K108*'Salary Worksheet'!H32) -> 0 | M108: =SUM(L108,J108,H108,F108,D108) -> 0
A109: Total Tuition/Fees | D109: =SUM(D107:D108) -> 0 | F109: =SUM(F107:F108) -> 0 | H109: =SUM(H107:H108) -> 0 | J109: =SUM(J107:J108) -> 0 | L109: =SUM(L107:L108) -> 0 | M109: =SUM(L109,J109,H109,F109,D109) -> 0
A110: SHIPPING
A111: UW? | D111: 5000 | M111: =SUM(L111,J111,H111,F111,D111) -> 5000
A112: Total Shipping | D112: =SUM(D111) -> 5000 | F112: =SUM(F111) -> 0 | H112: =SUM(H111:H111) -> 0 | J112: =SUM(J111:J111) -> 0 | L112: =SUM(L111:L111) -> 0 | M112: 5000
A114: TOTAL DIRECT COSTS | D114: =SUM(D112,D109,D105,D97,D85,D78,D74,D62,D56,D52,D40) -> 620597.423 | F114: =SUM(F112,F109,F105,F97,F85,F78,F74,F62,F56,F52,F40) -> 47243.15589 | H114: =SUM(H112,H109,H105,H97,H85,H78,H74,H62,H56,H52,H40) -> 0 | J114: =SUM(J112,J109,J105,J97,J85,J78,J74,J62,J56,J52,J40) -> 0 | L114: =SUM(L112,L109,L105,L97,L85,L78,L74,L62,L56,L52,L40) -> 0 | M114: 667840.5789
A115: MODIFIED TOTAL DIRECT COST BASE | D115: =D114-D102-D101-D97+D98-D62-D52-D105 -> 585597.423 | F115: =F114-F102-F101-F97+F98-F62-F52 -> 47243.15589 | H115: =H114-H102-H101-H97+H98-H62-H52 -> 0 | J115: =J114-J102-J101-J97+J98-J62-J52 -> 0 | L115: =L114-L102-L101-L97+L98-L62-L52 -> 0 | M115: 632840.5789
A116: TOTAL INDIRECT COSTS | C116: 0 | D116: =ROUND(D115*$C$116,0) -> 0 | F116: =ROUND(F115*$C$116,0) -> 0 | H116: =ROUND(H115*$C$116,0) -> 0 | J116: 0 | L116: 0 | M116: 0
A117: TOTAL DIRECT & INDIRECT COSTS | D117: =+D116+D114 -> 620597.423 | F117: =+F116+F114 -> 47243.15589 | H117: =+H116+H114 -> 0 | J117: =+J116+J114 -> 0 | L117: =+L116+L114 -> 0 | M117: 667840.5789

Sheet Salary Worksheet
A1: SALARY WORKSHEET
B2: Salary Increase Rate: | C2: 0.03 | G2: CONFIDENTIAL INFORMATION
C3: ANNUAL SALARY | D3: YR-1 | E3: YR-2 | F3: YR-3 | G3: YR-4 | H3: YR-5
B4: Mike Kelly | C4: =121.08*2080 -> 251846.4 | D4: =ROUND(C4*($C$2+1),0) -> 259402 | E4: =ROUND(D4*($C$2+1),0) -> 267184 | F4: =ROUND(E4*($C$2+1),0) -> 275200 | G4: =ROUND(F4*($C$2+1),0) -> 283456 | H4: =ROUND(G4*($C$2+1),0) -> 291960
B5: PI/Co-PI 2 | C5: 0 | D5: =ROUND(C5*($C$2+1),0) -> 0 | E5: =ROUND(D5*(C2+1),0) -> 0 | F5: =ROUND(E5*($C$2+1),0) -> 0 | G5: 0 | H5: 0
B6: PI/Co-PI 3 | C6: 0 | D6: 0 | E6: =ROUND(D6*(C2+1),0) -> 0 | F6: 0 | G6: 0 | H6: 0
B7: Craig Dawe | C7: =89.045*2080 -> 185213.6 | D7: 190770 | E7: =ROUND(D7*($C$2+1),0) -> 196493 | F7: =ROUND(E7*($C$2+1),0) -> 202388 | G7: =ROUND(F7*($C$2+1),0) -> 208460 | H7: =ROUND(G7*($C$2+1),0) -> 214714
B8: MARS Operations Manager | C8: 185214 | D8: =C8 -> 185214 | E8: =ROUND(D8*($C$2+1),0) -> 190770 | F8: 196493 | G8: 202388 | H8: 208460
B9: Dave French | C9: =53.14*2080 -> 110531.2 | D9: 113847 | E9: 117262 | F9: 120780 | G9: 124403 | H9: 128135
B10: Paul McGill | C10: =91.25*2080 -> 189800 | D10: 195494 | E10: 201359 | F10: 207400 | G10: 213622 | H10: 220031
B11: Ed Mellinger | C11: =85.1*2080 -> 177008 | D11: 182318 | E11: 187788 | F11: 193422 | G11: 199225 | H11: 205202
B12: Rich Schramm | C12: =80.62*2080 -> 167689.6 | D12: 172720 | E12: =ROUND(D12*(C2+1),0) -> 177902 | F12: 183239 | G12: 188736 | H12: 194398
B13: Mike Risi | C13: =83.62*2080 -> 173929.6 | D13: 179147 | E13: =ROUND(D13*(C2+1),0) -> 184521 | F13: 190057 | G13: 195759 | H13: 201632
B14: Jon Erickson | C14: =78.67*2080 -> 163633.6 | D14: 168543 | E14: =ROUND(D14*(C2+1),0) -> 173599 | F14: 178807 | G14: 184171 | H14: 189696
B15: Ray Thompson | C15: =56.57*2080 -> 117665.6 | D15: =ROUND(C15*($C$2+1),0) -> 121196 | E15: =ROUND(D15*(C2+1),0) -> 124832 | F15: 128577 | G15: 132434 | H15: 136407
B16: Duane Thompson | C16: =56.9*2080 -> 118352 | D16: 121903 | E16: =ROUND(D16*(C2+1),0) -> 125560 | F16: 129327 | G16: 133207 | H16: 137203
C17: HOURLY RATE | D17: YR-1 | E17: YR-2 | F17: YR-3 | G17: YR-4 | H17: YR-5
C18: 0 | D18: =C18 -> 0 | E18: =ROUND(D18*1.03, 2) -> 0 | F18: =ROUND(E18*1.03, 2) -> 0 | G18: 0 | H18: 0
C19: 0 | D19: =C19 -> 0 | E19: =ROUND(D19*1.03, 2) -> 0 | F19: 0 | G19: 0 | H19: 0
C20: 0 | D20: 0 | E20: 0 | F20: 0 | G20: 0 | H20: 0
C21: 0 | D21: 0 | E21: 0 | F21: 0 | G21: 0 | H21: 0
C22: 0 | D22: 0 | E22: 0 | F22: 0 | G22: 0 | H22: 0
C23: 0 | D23: 0 | E23: 0 | F23: 0 | G23: 0 | H23: 0
C24: 0 | D24: 0 | E24: 0 | F24: 0 | G24: 0 | H24: 0
C25: 0 | D25: 0 | E25: 0 | F25: 0 | G25: 0 | H25: 0
A26: Postdoc salaries and grad student salaries and tuition are set by MBARI and UCSC policies. The cells below are locked and you do not need to enter any information here. Calculate postdoc and grad student salaries and tuition by entering months of effort/academic quarters in the corresponding cells in the Budget Worksheet.
B27: Postdocs | D27: 60000 | E27: 63000 | F27: 65000 | G27: =F27*1.03 -> 66950 | H27: =G27*1.03 -> 68958.5
C28: Postdoc (Hourly) | D28: =D27/2080 -> 28.84615385 | E28: =E27/2080 -> 30.28846154 | F28: =F27/2080 -> 31.25 | G28: =G27/2080 -> 32.1875 | H28: =H27/2080 -> 33.153125
B29: Graduate Students | D29: 30875 | E29: 30875 | F29: 30875 | G29: 34450 | H29: 34450
C30: Grad Student (Hourly) | D30: 23.75 | E30: 23.75 | F30: 23.75 | G30: 26.5 | H30: 26.5
A31: UCSC Resident Tuition (per quarter) | D31: 6511 | E31: =D31*1.07 -> 6966.77 | F31: =E31*1.07 -> 7454.4439 | G31: 7976.254973 | H31: 8534.592821
A32: UCSC Non-Res Tuition (per quarter) | D32: 11897 | E32: 12729.79 | F32: 13620.8753 | G32: 14574.33657 | H32: 15594.54013
A34: PART-TIME & TEMP EMPLOYEES
A35: ANNUAL | C35: Hourly Rate | D35: Hrs/Wk | E35: ANNUAL SALARY | F35: YR-2 | G35: YR-3 | H35: YR-4 | I35: YR-5
B36: PT (30-39 hrs) 1 | C36: 0 | E36: =ROUND(C36*40*52,0) -> 0 | F36: =ROUND(E36*(1+$C$2),0) -> 0 | G36: 0 | H36: 0 | I36: =ROUND(H36*($C$2+1),0) -> 0
B37: PT (30-39 hrs) 2 | C37: 0 | E37: =ROUND(C37*40*52,0) -> 0 | F37: 0 | G37: 0 | H37: 0 | I37: =ROUND(H37*($C$2+1),0) -> 0
B38: PT (≤29 hrs) 1 | C38: 0 | E38: =ROUND(C38*40*52,0) -> 0 | F38: 0 | G38: 0 | H38: 0 | I38: 0
B39: PT (≤29 hrs) 2 | C39: 0 | E39: 0 | F39: 0 | G39: 0 | H39: 0 | I39: 0
B40: Temp 1 | C40: 0 | E40: 0 | F40: 0 | G40: 0 | H40: 0 | I40: 0
B41: Temp 2 | C41: 0 | E41: 0 | F41: =ROUND(E41*(1+$C$2),0) -> 0 | G41: =ROUND(F41*(1+$C$2),0) -> 0 | H41: =ROUND(G41*(1+$C$2),0) -> 0 | I41: =ROUND(H41*($C$2+1),0) -> 0
A42: HOURLY | C42: Hourly Rate | E42: Y1 | F42: YR-2 | G42: YR-3 | H42: YR-4 | I42: YR-5
B43: PT (30-39 hrs) 1 | C43: =C36 -> 0 | E43: =C36 -> 0 | F43: =E43*(1+$C$2) -> 0 | G43: =F43*(1+$C$2) -> 0 | H43: 0 | I43: 0
B44: PT (30-39 hrs) 2 | C44: 0 | E44: 0 | F44: =E44*(1+$C$2) -> 0 | G44: 0 | H44: 0 | I44: 0
B45: PT (≤29 hrs) 1 | C45: 0 | E45: 0 | F45: 0 | G45: 0 | H45: 0 | I45: 0
B46: PT (≤29 hrs) 2 | C46: 0 | E46: 0 | F46: 0 | G46: 0 | H46: 0 | I46: 0
B47: Temporary Employee 1 | C47: 0 | E47: 0 | F47: 0 | G47: 0 | H47: 0 | I47: 0
B48: Temporary Employee 2 | C48: 0 | E48: 0 | F48: =E48*(1+$C$2) -> 0 | G48: =F48*(1+$C$2) -> 0 | H48: =G48*(1+$C$2) -> 0 | I48: =H48*(1+$C$2) -> 0
A49: SALARY CALCULATOR
A50: Hours | B50: Hours | D50: Hourly rate: | E50: 0 | F50: Annual Salary: | G50: =ROUND(E50*40*52,0) -> 0
A51: Months | B51: Months | D51: Monthly rate: | E51: 0 | F51: Annual Salary: | G51: =ROUND(E51*12,0) -> 0
D52: Annual Salary | E52: 0 | F52: Hourly rate: | G52: =ROUND(E52/2080,2) -> 0

Sheet Subaward Worksheet
A1: SUBAWARD WORKSHEET
A2: Note: This worksheet calculates subaward overhead and is populated automatically. Enter subaward amounts in the main Budget Worksheet.
B3: Y1 | C3: Y2 | D3: Y3 | E3: Y4 | F3: Y5 | G3: Y1-5
A4: ='MARS Budget w UW subaward'!A96 -> UW APL Subaward | B4: ='MARS Budget w UW subaward'!D96 -> 291756 | C4: ='CIP MARS Node Upgrade'!$F$87 -> 0 | D4: ='CIP MARS Node Upgrade'!$H$87 -> 0 | E4: ='CIP MARS Node Upgrade'!$J$87 -> 0 | F4: ='CIP MARS Node Upgrade'!$L$87 -> 0 | G4: =SUM(B4:F4) -> 291756
A5: Subject to OH | B5: =IF(B4>25000, 25000, B4) -> 25000 | C5: =IF(B4+C4>25000, 25000-B5, C4) -> 0 | D5: =IF(B4+C4+D4>25000, 25000-(B5+C5), D4) -> 0 | E5: =IF(B4+C4+D4+E4>25000, 25000-(B5+C5+D5), E4) -> 0 | F5: =IF(B4+C4+D4+E4+F4>25000, 25000-(B5+C5+D5+E5), F4) -> 0 | G5: =SUM(B5:F5) -> 25000
A6: OH | B6: =IF(B4>25000, 13125, (B4*0.51)) -> 13125 | C6: =IF(C4>25000, 13125, (C4*0.51)) -> 0 | D6: =IF(D4>25000, 13125, (D4*0.51)) -> 0 | E6: =IF(E4>25000, 13125, (E4*0.51)) -> 0 | F6: =IF(F4>25000, 13125, (F4*0.51)) -> 0 | G6: 13125
A7: ='CIP MARS Node Upgrade'!$A$88 -> 0 | B7: ='CIP MARS Node Upgrade'!$D$88 -> 0 | C7: ='CIP MARS Node Upgrade'!$F$88 -> 0 | D7: ='CIP MARS Node Upgrade'!$H$88 -> 0 | E7: ='CIP MARS Node Upgrade'!$J$88 -> 0 | F7: ='CIP MARS Node Upgrade'!$L$88 -> 0 | G7: 0
A8: Subject to OH | B8: =IF(B7>25000, 25000, B7) -> 0 | C8: =IF(B7+C7>25000, 25000-B8, C7) -> 0 | D8: =IF(B7+C7+D7>25000, 25000-(B8+C8), D7) -> 0 | E8: =IF(B7+C7+D7+E7>25000, 25000-(B8+C8+D8), E7) -> 0 | F8: =IF(B7+C7+D7+E7+F7>25000, 25000-(B8+C8+D8+E8), F7) -> 0 | G8: =SUM(B8:F8) -> 0
A9: OH | B9: =IF(B7>25000, 12750, (B7*0.51)) -> 0 | C9: =IF(C7+B7>25000,12750-B9,ROUND(C7*0.51,0)) -> 0 | D9: =IF(D7+C7+B7>25000,12750-(B9+C9),(D7*0.51)) -> 0 | E9: =IF(E7+D7+C7+B7>25000,12750-(B9+C9+D9),(E7*0.51)) -> 0 | F9: =IF(F7+E7+D7+C7+B7>25000,12750-(B9+C9+D9+E9),(F7*0.51)) -> 0 | G9: 0
A10: ='CIP MARS Node Upgrade'!$A$89 -> 0 | B10: ='CIP MARS Node Upgrade'!$D$89 -> 0 | C10: ='CIP MARS Node Upgrade'!$F$89 -> 0 | D10: ='CIP MARS Node Upgrade'!$H$89 -> 0 | E10: ='CIP MARS Node Upgrade'!$J$89 -> 0 | F10: ='CIP MARS Node Upgrade'!$L$89 -> 0 | G10: 0
A11: Subject to OH | B11: =IF(B10>25000, 25000, B10) -> 0 | C11: =IF(B10+C10>25000, 25000-B11, C10) -> 0 | D11: =IF(B10+C10+D10>25000, 25000-(B11+C11), D10) -> 0 | E11: =IF(B10+C10+D10+E10>25000, 25000-(B11+C11+D11), E10) -> 0 | F11: =IF(B10+C10+D10+E10+F10>25000, 25000-(B11+C11+D11+E11), F10) -> 0 | G11: =SUM(B11:F11) -> 0
A12: OH | B12: =IF(B10>25000, 12750, (B10*0.51)) -> 0 | C12: =IF(C10+B10>25000,12750-B12,ROUND(C10*0.51,0)) -> 0 | D12: =IF(D10+C10+B10>25000,12750-(B12+C12),(D10*0.51)) -> 0 | E12: =IF(E10+D10+C10+B10>25000,12750-(B12+C12+D12),(E10*0.51)) -> 0 | F12: =IF(F10+E10+D10+C10+B10>25000,12750-(B12+C12+D12+E12),(F10*0.51)) -> 0 | G12: 0
A13: ='CIP MARS Node Upgrade'!$A$90 -> 0 | B13: ='CIP MARS Node Upgrade'!$D$90 -> 0 | C13: ='CIP MARS Node Upgrade'!$F$90 -> 0 | D13: ='CIP MARS Node Upgrade'!$H$90 -> 0 | E13: ='CIP MARS Node Upgrade'!$J$90 -> 0 | F13: ='CIP MARS Node Upgrade'!$L$90 -> 0 | G13: =SUM(B13:F13) -> 0
A14: Subject to OH | B14: =IF(B13>25000, 25000, B13) -> 0 | C14: =IF(B13+C13>25000, 25000-B14, C13) -> 0 | D14: =IF(B13+C13+D13>25000, 25000-(B14+C14), D13) -> 0 | E14: =IF(B13+C13+D13+E13>25000, 25000-(B14+C14+D14), E13) -> 0 | F14: =IF(B13+C13+D13+E13+F13>25000, 25000-(B14+C14+D14+E14), F13) -> 0 | G14: =SUM(B14:F14) -> 0
A15: OH | B15: =IF(B13>25000, 12750, (B13*0.51)) -> 0 | C15: =IF(C13+B13>25000,12750-B15,ROUND(C13*0.51,0)) -> 0 | D15: =IF(D13+C13+B13>25000,12750-(B15+C15),(D13*0.51)) -> 0 | E15: =IF(E13+D13+C13+B13>25000,12750-(B15+C15+D15),(E13*0.51)) -> 0 | F15: =IF(F13+E13+D13+C13+B13>25000,12750-(B15+C15+D15+E15),(F13*0.51)) -> 0 | G15: 0
A16: ='CIP MARS Node Upgrade'!$A$91 -> 0 | B16: ='CIP MARS Node Upgrade'!$D$91 -> 0 | C16: ='CIP MARS Node Upgrade'!$F$91 -> 0 | D16: ='CIP MARS Node Upgrade'!$H$91 -> 0 | E16: ='CIP MARS Node Upgrade'!$J$91 -> 0 | F16: ='CIP MARS Node Upgrade'!$L$91 -> 0 | G16: 0
A17: Subject to OH | B17: =IF(B16>25000, 25000, B16) -> 0 | C17: =IF(B16+C16>25000, 25000-B17, C16) -> 0 | D17: =IF(B16+C16+D16>25000, 25000-(B17+C17), D16) -> 0 | E17: =IF(B16+C16+D16+E16>25000, 25000-(B17+C17+D17), E16) -> 0 | F17: =IF(B16+C16+D16+E16+F16>25000, 25000-(B17+C17+D17+E17), F16) -> 0 | G17: =SUM(B17:F17) -> 0
A18: OH | B18: =IF(B16>25000, 12750, (B16*0.51)) -> 0 | C18: =IF(C16+B16>25000,12750-B18,ROUND(C16*0.51,0)) -> 0 | D18: =IF(D16+C16+B16>25000,12750-(B18+C18),(D16*0.51)) -> 0 | E18: =IF(E16+D16+C16+B16>25000,12750-(B18+C18+D18),(E16*0.51)) -> 0 | F18: =IF(F16+E16+D16+C16+B16>25000,12750-(B18+C18+D18+E18),(F16*0.51)) -> 0 | G18: 0
A19: ='CIP MARS Node Upgrade'!$A$92 -> 0 | B19: ='CIP MARS Node Upgrade'!$D$92 -> 0 | C19: ='CIP MARS Node Upgrade'!$F$92 -> 0 | D19: ='CIP MARS Node Upgrade'!$H$92 -> 0 | E19: ='CIP MARS Node Upgrade'!$J$92 -> 0 | F19: ='CIP MARS Node Upgrade'!$L$92 -> 0 | G19: 0
A20: Subject to OH | B20: =IF(B19>25000, 25000, B19) -> 0 | C20: =IF(B19+C19>25000, 25000-B20, C19) -> 0 | D20: =IF(B19+C19+D19>25000, 25000-(B20+C20), D19) -> 0 | E20: =IF(B19+C19+D19+E19>25000, 25000-(B20+C20+D20), E19) -> 0 | F20: =IF(B19+C19+D19+E19+F19>25000, 25000-(B20+C20+D20+E20), F19) -> 0 | G20: =SUM(B20:F20) -> 0
A21: OH | B21: =IF(B19>25000, 12750, (B19*0.51)) -> 0 | C21: =IF(C19+B19>25000,12750-B21,ROUND(C19*0.51,0)) -> 0 | D21: =IF(D19+C19+B19>25000,12750-(B21+C21),(D19*0.51)) -> 0 | E21: =IF(E19+D19+C19+B19>25000,12750-(B21+C21+D21),(E19*0.51)) -> 0 | F21: =IF(F19+E19+D19+C19+B19>25000,12750-(B21+C21+D21+E21),(F19*0.51)) -> 0 | G21: 0
A22: ='CIP MARS Node Upgrade'!$A$93 -> 0 | B22: ='CIP MARS Node Upgrade'!$D$93 -> 0 | C22: ='CIP MARS Node Upgrade'!$F$93 -> 0 | D22: ='CIP MARS Node Upgrade'!$H$93 -> 0 | E22: ='CIP MARS Node Upgrade'!$J$93 -> 0 | F22: ='CIP MARS Node Upgrade'!$L$93 -> 0 | G22: 0
A23: Subject to OH | B23: =IF(B22>25000, 25000, B22) -> 0 | C23: =IF(B22+C22>25000, 25000-B23, C22) -> 0 | D23: =IF(B22+C22+D22>25000, 25000-(B23+C23), D22) -> 0 | E23: =IF(B22+C22+D22+E22>25000, 25000-(B23+C23+D23), E22) -> 0 | F23: =IF(B22+C22+D22+E22+F22>25000, 25000-(B23+C23+D23+E23), F22) -> 0 | G23: =SUM(B23:F23) -> 0
A24: OH | B24: =IF(B22>25000, 12750, (B22*0.51)) -> 0 | C24: =IF(C22+B22>25000,12750-B24,ROUND(C22*0.51,0)) -> 0 | D24: =IF(D22+C22+B22>25000,12750-(B24+C24),(D22*0.51)) -> 0 | E24: =IF(E22+D22+C22+B22>25000,12750-(B24+C24+D24),(E22*0.51)) -> 0 | F24: =IF(F22+E22+D22+C22+B22>25000,12750-(B24+C24+D24+E24),(F22*0.51)) -> 0 | G24: 0
A25: ='CIP MARS Node Upgrade'!$A$94 -> 0 | B25: ='CIP MARS Node Upgrade'!$D$94 -> 0 | C25: ='CIP MARS Node Upgrade'!$F$94 -> 0 | D25: ='CIP MARS Node Upgrade'!$H$94 -> 0 | E25: ='CIP MARS Node Upgrade'!$J$94 -> 0 | F25: ='CIP MARS Node Upgrade'!$L$94 -> 0 | G25: 0
A26: Subject to OH | B26: =IF(B25>25000, 25000, B25) -> 0 | C26: =IF(B25+C25>25000, 25000-B26, C25) -> 0 | D26: =IF(B25+C25+D25>25000, 25000-(B26+C26), D25) -> 0 | E26: =IF(B25+C25+D25+E25>25000, 25000-(B26+C26+D26), E25) -> 0 | F26: =IF(B25+C25+D25+E25+F25>25000, 25000-(B26+C26+D26+E26), F25) -> 0 | G26: =SUM(B26:F26) -> 0
A27: OH | B27: =IF(B25>25000, 12750, (B25*0.51)) -> 0 | C27: =IF(C25+B25>25000,12750-B27,ROUND(C25*0.51,0)) -> 0 | D27: =IF(D25+C25+B25>25000,12750-(B27+C27),(D25*0.51)) -> 0 | E27: =IF(E25+D25+C25+B25>25000,12750-(B27+C27+D27),(E25*0.51)) -> 0 | F27: =IF(F25+E25+D25+C25+B25>25000,12750-(B27+C27+D27+E27),(F25*0.51)) -> 0 | G27: 0
A28: ='CIP MARS Node Upgrade'!$A$95 -> 0 | B28: ='CIP MARS Node Upgrade'!$D$95 -> 0 | C28: ='CIP MARS Node Upgrade'!$F$95 -> 0 | D28: ='CIP MARS Node Upgrade'!$H$95 -> 0 | E28: ='CIP MARS Node Upgrade'!$J$95 -> 0 | F28: ='CIP MARS Node Upgrade'!$L$95 -> 0 | G28: 0
A29: Subject to OH | B29: =IF(B28>25000, 25000, B28) -> 0 | C29: =IF(B28+C28>25000, 25000-B29, C28) -> 0 | D29: =IF(B28+C28+D28>25000, 25000-(B29+C29), D28) -> 0 | E29: =IF(B28+C28+D28+E28>25000, 25000-(B29+C29+D29), E28) -> 0 | F29: =IF(B28+C28+D28+E28+F28>25000, 25000-(B29+C29+D29+E29), F28) -> 0 | G29: =SUM(B29:F29) -> 0
A30: OH | B30: =IF(B28>25000, 12750, (B28*0.51)) -> 0 | C30: =IF(C28+B28>25000,12750-B30,ROUND(C28*0.51,0)) -> 0 | D30: =IF(D28+C28+B28>25000,12750-(B30+C30),(D28*0.51)) -> 0 | E30: =IF(E28+D28+C28+B28>25000,12750-(B30+C30+D30),(E28*0.51)) -> 0 | F30: =IF(F28+E28+D28+C28+B28>25000,12750-(B30+C30+D30+E30),(F28*0.51)) -> 0 | G30: 0
A31: ='CIP MARS Node Upgrade'!$A$96 -> 0 | B31: ='CIP MARS Node Upgrade'!$D$96 -> 0 | C31: ='CIP MARS Node Upgrade'!$F$96 -> 0 | D31: ='CIP MARS Node Upgrade'!$H$96 -> 0 | E31: ='CIP MARS Node Upgrade'!$J$96 -> 0 | F31: ='CIP MARS Node Upgrade'!$L$96 -> 0 | G31: 0
A32: Subject to OH | B32: =IF(B31>25000, 25000, B31) -> 0 | C32: =IF(B31+C31>25000, 25000-B32, C31) -> 0 | D32: =IF(B31+C31+D31>25000, 25000-(B32+C32), D31) -> 0 | E32: =IF(B31+C31+D31+E31>25000, 25000-(B32+C32+D32), E31) -> 0 | F32: =IF(B31+C31+D31+E31+F31>25000, 25000-(B32+C32+D32+E32), F31) -> 0 | G32: =SUM(B32:F32) -> 0
A33: OH | B33: =IF(B31>25000, 12750, (B31*0.51)) -> 0 | C33: =IF(C31+B31>25000,12750-B33,ROUND(C31*0.51,0)) -> 0 | D33: =IF(D31+C31+B31>25000,12750-(B33+C33),(D31*0.51)) -> 0 | E33: =IF(E31+D31+C31+B31>25000,12750-(B33+C33+D33),(E31*0.51)) -> 0 | F33: =IF(F31+E31+D31+C31+B31>25000,12750-(B33+C33+D33+E33),(F31*0.51)) -> 0 | G33: 0
A34: Total Subawards | B34: =SUM(B31,B28,B22,B19,B16,B13,B10,B7,B4) -> 291756 | C34: =SUM(C31,C28,C22,C19,C16,C13,C10,C7,C4) -> 0 | D34: 0 | E34: 0 | F34: 0 | G34: =SUM(B34:F34) -> 291756
A35: Total Subject to OH | B35: =SUM(B32,B29,B26,B23,B20,B17,B14,B11,B8,B5) -> 25000 | C35: =SUM(C32,C29,C26,C23,C20,C17,C14,C11,C8,C5) -> 0 | D35: 0 | E35: 0 | F35: 0 | G35: =SUM(B35:F35) -> 25000
A36: Total Overhead | B36: =SUM(B33,B30,B27,B24,B21,B18,B15,B12,B9,B6) -> 13125 | C36: =SUM(C33,C30,C27,C24,C21,C18,C15,C12,C9,C6) -> 0 | D36: 0 | E36: 0 | F36: 0 | G36: 13125
A38: pw: edit

Sheet Projected Ship Rates
A1: Asset | B1: 2020 | C1: 2021 | D1: 2022 | E1: 2023 | F1: 2024 | G1: 2025
A2: Rachel Carson | B2: 13385 | C2: 13885 | D2: 14405 | E2: 15180 | F2: 15750 | G2: 16350
A3: Rachel Carson 12 | B3: 14660 | C3: 15200 | D3: 15780 | E3: 16600 | F3: 17200 | G3: 17890
A4: Ventana | B4: 6400 | C4: 6600 | D4: 6900 | E4: 7100 | F4: 7300 | G4: 7600
A5: Western Flyer with Ricketts | B5: 33000 | C5: 33990 | D5: 35009.7 | E5: N/A | F5: N/A | G5: N/A
A6: AUV | B6: 12745 | C6: 13100 | D6: 13500 | E6: 13900 | F6: 14300 | G6: 14775
A7: Paragon | B7: 500 | C7: 515 | D7: 530 | E7: 545 | F7: 560 | G7: 580
A12: Carson w Ventana | B12: =B3+B4 -> 21060 | C12: =C3+C4 -> 21800 | D12: 22680 | E12: 23700 | F12: 24500 | G12: 25490
C15: =C3*4 -> 60800
C16: =C4*4 -> 26400

Sheet Craig's Worksheet
F1: MARS O&M Operational Costs Mar 1 2021 - February 28 2026
A3: Item | E3: Yr 1 | G3: Yr 2 | I3: Yr 3 | K3: Yr 4 | M3: Yr 5 | O3: Item
E4: months | F4: cost | G4: months | H4: cost | I4: months | J4: cost | K4: months | L4: cost | M4: months | N4: cost
A5: Personnel | O5: Personnel
B6: Kelly | E6: 2 | F6: 0 | G6: 2 | H6: 0 | I6: 2 | J6: =I6*4.5*80*R6 -> 0 | K6: 2 | L6: 0 | M6: 2 | N6: 0
B7: Dawe | E7: 5 | F7: =E7*4.5*40*R7 -> 80136 | G7: 4 | H7: =G7*4.5*40*S7 -> 66032.064 | I7: 4 | J7: =I7*4.5*40*T7 -> 68013.02592 | K7: 4 | L7: =K7*4.5*40*U7 -> 70053.4167 | M7: 4 | N7: =M7*4.5*40*V7 -> 72155.0192 | P7: Dawe | R7: 89.04 | S7: =R7+R7*0.03 -> 91.7112 | T7: 94.462536 | U7: 97.29641208 | V7: 100.2153044
B8: Thompson | E8: 2.33 | F8: 27596.52 | G8: 3 | H8: 36597.96 | I8: 4 | J8: =I8*4.5*40*T8 -> 50261.1984 | K8: 4 | L8: =K8*4.5*40*U8 -> 51769.03435 | M8: 4 | N8: =M8*4.5*40*V8 -> 53322.10538 | P8: Thompson | R8: 65.8 | S8: 67.774 | T8: 69.80722 | U8: 71.9014366 | V8: 74.0584797
B9: French | E9: 1 | F9: 12600 | G9: 0.667 | H9: 8656.326 | I9: 2 | J9: =I9*4.5*40*T9 -> 26734.68 | K9: 2 | L9: =K9*4.5*40*U9 -> 27536.7204 | M9: 2 | N9: =M9*4.5*40*V9 -> 28362.82201 | P9: French | R9: 70 | S9: 72.1 | T9: 74.263 | U9: 76.49089 | V9: 78.7856167
B10: McGill/Mellinger | E10: 0.5 | F10: 8377.2 | H10: 0 | P10: McGill/Mellinger | R10: 93.08 | S10: 95.8724 | T10: 98.748572 | U10: 101.7110292 | V10: 104.76236
B11: Schram/Risi | E11: 0.5 | F11: 8377.2 | H11: 0 | P11: Schram/Risi | R11: 93.08 | S11: 95.8724 | T11: 98.748572 | U11: 101.7110292 | V11: 104.76236
B12: Erikson | E12: 0.25 | F12: 3722.85 | H12: 0 | P12: Erikson | R12: 82.73 | S12: 85.2119 | T12: 87.768257 | U12: 90.40130471 | V12: 93.11334385
B13: R Thompson | E13: 0.25 | F13: 2596.95 | H13: 0 | P13: R Thompson | R13: 57.71 | S13: 59.4413 | T13: 61.224539 | U13: 63.06127517 | V13: 64.95311343
B14: Enginering support | G14: 1 | H14: 15017.4 | I14: 1 | J14: =I14*4.5*40*T14 -> 15467.922 | K14: 1 | L14: =K14*4.5*40*U14 -> 15931.95966 | M14: 1 | N14: =M14*4.5*40*V14 -> 16409.91845 | P14: Enginering support | R14: 81 | S14: 83.43 | T14: 85.9329 | U14: 88.510887 | V14: 91.16621361
B15: total man months | E15: =SUM(E7:E14) -> 9.83 | G15: =SUM(G7:G14) -> 8.667 | I15: =SUM(I7:I14) -> 11 | K15: =SUM(K7:K14) -> 11 | M15: =SUM(M7:M14) -> 11 | P15: total man months
A16: total Labor | F16: =SUM(F7:F14) -> 143406.72 | H16: =SUM(H7:H14) -> 126303.75 | J16: =SUM(J7:J14) -> 160476.8263 | L16: =SUM(L7:L14) -> 165291.1311 | N16: =SUM(N7:N14) -> 170249.865 | Q16: =SUM(F16:O16) -> 765728.2925
A17: Fringe Benefits
F18: =SUM(F6:F14)*0.56 -> 80307.7632 | H18: =SUM(H6:H14)*0.56 -> 70730.1 | J18: =SUM(J6:J14)*0.56 -> 89867.02274 | L18: =SUM(L6:L14)*0.56 -> 92563.03342 | N18: =SUM(N6:N14)*0.56 -> 95339.92442 | O18: total | Q18: =SUM(F18:N18) -> 428807.8438
A20: Equipment
B21: Computer hardware | F21: 7500 | H21: 7500
E22: annual total | F22: 10500 | O22: total | Q22: =SUM(F21:N21) -> 15000
A24: Travel
B25: Domestic | F25: 1000 | H25: 1000 | J25: 1000 | L25: 1000 | N25: 1000 | O25: total | Q25: =SUM(F25:N25) -> 5000
B26: Foreign none
E27: Yr 1 | G27: Yr 2 | I27: Yr 3 | K27: Yr 4 | M27: Yr 5
A28: Other direct costs
B29: Supplies computer hardware | F29: 750 | H29: 750 | J29: 750 | L29: 750 | N29: 750 | P29: =SUM(F29:N29) -> 3750
B30: Computer software | F30: 200 | H30: 200 | J30: 200 | L30: 200 | N30: 200 | P30: =SUM(F30:N30) -> 1000
B31: Non-Cap Equipment | F31: 4500 | H31: 4500 | J31: 4500 | L31: 4500 | N31: 4500 | P31: =SUM(F31:N31) -> 22500
B32: Supplies General | F32: 2000 | H32: 2000 | J32: 2000 | L32: 2000 | N32: 2000 | P32: =SUM(F32:N32) -> 10000
D33: annual total | F33: =SUM(F29:F32) -> 7450 | H33: =SUM(H29:H32) -> 7450 | J33: =SUM(J29:J32) -> 7450 | L33: =SUM(L29:L32) -> 7450 | N33: =SUM(N29:N32) -> 7450 | O33: total | Q33: =SUM(P29:P32) -> 37250
A35: Other
B36: Internal Ship time | E36: days | F36: cost | G36: days | H36: cost | I36: days | J36: cost | K36: days | L36: cost | M36: days | N36: cost | T36: Ship cost/Day based on 3% annual increase
D37: annual total | E37: 6 | F37: =E37*U37 -> 129600 | G37: 2 | H37: =G37*U38 -> 44500 | I37: 2 | J37: =I37*U39 -> 45800 | K37: 10 | L37: =K37*U40 -> 236000 | M37: 8 | N37: =M37*U41 -> 194400 | O37: total | Q37: =F37+H37+J37+L37+N37 -> 650300 | T37: 2021 | U37: 21600
T38: 2022 | U38: 22250
T39: 2023 | U39: 22900
T40: 2024 | U40: 23600
A41: Outside Services | T41: 2025 | U41: 24300
B42: Router/Switch maintenance | F42: 1800 | H42: =F42*0.03 +F42 -> 1854 | J42: =H42*0.03 +H42 -> 1909.62 | L42: =J42*0.03 +J42 -> 1966.9086 | N42: =L42*0.03 +L42 -> 2025.915858 | P42: =F42+H42+J42+L42+N42 -> 9556.444458
B43: Software/Hardware maintenance UW | H43: 43000 | J43: =H43*0.03 +H43 -> 44290 | L43: =J43*0.03 +J43 -> 45618.7 | N43: =L43*0.03 +L43 -> 46987.261 | P43: =F43+H43+J43+L43+N43 -> 179895.961
B44: Right of way MLHD | F44: 1460 | H44: =F44*0.03 +F44 -> 1503.8 | J44: =H44*0.03 +H44 -> 1548.914 | L44: =J44*0.03 +J44 -> 1595.38142 | N44: =L44*0.03 +L44 -> 1643.242863 | P44: =F44+H44+J44+L44+N44 -> 7751.338283
B45: Linda Kuhnz Actual Impacts Assesment (AIA) | L45: 31150 | P45: =F45+H45+J45+L45+N45 -> 31150
B46: ABA Consultants Sample processing for AIA | L46: 24600 | P46: =F46+H46+J46+L46+N46 -> 24600
F47: =SUM(F42:F46) -> 3260 | H47: =SUM(H42:H46) -> 46357.8 | J47: =SUM(J42:J46) -> 47748.534 | L47: =SUM(L42:L46) -> 104930.99 | N47: =SUM(N42:N46) -> 50656.41972 | O47: total | Q47: =P42+P43+P44+P45+P46 -> 252953.7437
A49: Shipping | F49: 1000 | H49: 1000 | J49: 1000 | L49: 1000 | N49: 1000 | Q49: =F49+H49+J49+L49+N49 -> 5000
A50: indirect costs | Q50: =SUM(Q49+Q33+Q25+Q22+Q18+Q16)*0.53 -> 666096.6522
F51: Node Upgrade Capital Project 2021
A52: Item | E52: Yr 1 | G52: Yr 2 | I52: Yr 3 | K52: Yr 4 | M52: Yr 5 | O52: Item
E53: months | F53: cost | G53: months | H53: cost | I53: months | J53: cost | K53: months | L53: cost | M53: months | N53: cost
A54: Personnel | O54: Personnel
B56: Dawe | E56: 2 | F56: =E56*4.5*40*R56 -> 32054.4 | G56: 1 | H56: =G56*4.5*40*S56 -> 16508.016 | P56: Dawe | R56: 89.04 | S56: =R56+R56*0.03 -> 91.7112 | T56: 94.462536 | U56: 97.29641208 | V56: 100.2153044
B57: Thompson | E57: 1.33 | F57: 15752.52 | G57: 1 | H57: =G57*4.5*40*S57 -> 12199.32 | P57: Thompson | R57: 65.8 | S57: 67.774 | T57: 69.80722 | U57: 71.9014366 | V57: 74.0584797
B58: French | E58: 0.667 | F58: 8404.2 | G58: 0.33 | H58: =G58*4.5*40*S58 -> 4282.74 | P58: French | R58: 70 | S58: 72.1 | T58: 74.263 | U58: 76.49089 | V58: 78.7856167
B59: McGill/Mellinger | E59: 0.5 | F59: 8377.2 | P59: McGill/Mellinger | R59: 93.08 | S59: 95.8724 | T59: 98.748572 | U59: 101.7110292 | V59: 104.76236
B60: Schram/Risi | E60: 0.5 | F60: 8377.2 | P60: Schram/Risi | R60: 93.08 | S60: 95.8724 | T60: 98.748572 | U60: 101.7110292 | V60: 104.76236
B61: Erikson | E61: 0.75 | F61: 11168.55 | P61: Erikson | R61: 82.73 | S61: 85.2119 | T61: 87.768257 | U61: 90.40130471 | V61: 93.11334385
B62: R Thompson | E62: 0.75 | F62: 7790.85 | P62: R Thompson | R62: 57.71 | S62: 59.4413 | T62: 61.224539 | U62: 63.06127517 | V62: 64.95311343
B63: Enginering support | F63: =E63*4.5*80*R63 -> 0 | P63: Enginering support | R63: 81 | S63: 83.43 | T63: 85.9329 | U63: 88.510887 | V63: 91.16621361
B64: total man months | E64: =SUM(E55:E63) -> 6.497 | G64: =SUM(G55:G63) -> 2.33 | I64: =SUM(I55:I63) -> 0 | K64: =SUM(K55:K63) -> 0 | M64: =SUM(M55:M63) -> 0 | P64: total man months
A65: Fringe Benefits
F66: =SUM(F55:F63)*0.56 -> 51477.9552 | H66: =SUM(H55:H63) -> 32990.076 | J66: =SUM(J55:J63) -> 0 | L66: =SUM(L55:L63) -> 0 | N66: =SUM(N55:N63) -> 0 | O66: total | P66: =SUM(E66:M66) -> 84468.0312
A68: Equipment
B69: ODI Hybrid Test lead | F69: 60000
B70: Titanium Billet and end plates (new MVC housing) | F70: 24100
B71: ODI Wet Mate Panel Connectors Refurbish x5 | F71: 45000
B72: Data transport, data conv, timing
B73: connectors, supplies | F73: 15000
B75: total equipment | F75: =SUM(F69:F74) -> 144100 | P75: =F75 -> 144100
A77: Outside Services
B78: University of Washington APL build & install
B79: of new low voltage electronics and control software | F79: 430000 | P79: =F79 -> 430000
A81: Shipping | F81: 5000 | P81: =F81 -> 5000
L83: Node Refurbishment Capital | O83: total | Q83: =SUM(P66:P82) -> 663568.0312
L85: Project Total | Q85: =SUM(Q83+Q49+Q47+Q37+Q33+Q25+Q22+Q18+Q16) -> 2823607.911
